Cogmind - Beta 9.6 @@@ ROGUE MODE // 2020.09.06 @ 22:31:25 Player: Vectis Result: Destroyed by Enhanced Grunt with Neutron Cannon Performance ------------- Evolutions (9) 4500 Regions Visited (37) 7400 Robots Destroyed (204) 1020 Value Destroyed (6358) 6358 Prototype IDs (96) 1920 Alien Tech Used (11) 2200 Bonus (11205) 11205 TOTAL SCORE: 34603 Bonus ------- High Alert Combat Kills 702 Follower Combat Kills 308 Aligned with FarCom 300 Met Data Miner 300 Met Imprinter 300 Met Zhirov 300 Met Warlord at Base 500 MAIN.C Attacked Warlord 500 Hacked Protovariant 500 Met Warlord at Research 2000 Scanned by Researcher 500 Pursued by Intercept 1000 Met MAIN.C 5000 Met Architect 300 Friendly Fire -1305 Cogmind --------- Core Integrity 0/1600 Matter 175/300 Energy 336/350 System Corruption 0% Temperature Cool (22) Movement Flying (20) Location -1/Access_0 Parts ------- > --- POWER (2) -------- (None) > --- PROPULSION (6) --- Impulse Thruster Array Experimental Q-thruster Experimental Q-thruster > --- UTILITY (14) ----- Experimental Melee Analysis Suite > --- WEAPON (4) ------- Longsword +1 Nanosword > --- INVENTORY (4) ---- Improved Potential Cannon Sigix Terminator Peak State ------------ > --- POWER ------------ Micro Fission Core Micro Fission Core > --- PROPULSION ------- Impulse Thruster Array Impulse Thruster Array Impulse Thruster Array > --- UTILITY ---------- Medium Storage Unit Large Storage Unit Experimental Energy Well Quantum Shading Machine Experimental Melee Analysis Suite Femtoactuators Experimental Actuator Array Advanced Force Booster Experimental Propulsion Shielding SHELL Armor AEGIS Remote Shield Experimental Hacking Suite > --- WEAPON ----------- Improved Potential Cannon Longsword +1 Nanosword > --- INVENTORY -------- Quantum Reactor Vortex Chain Reactor Advanced Signal Interpreter Advanced ECM Suite Phasing AFG High-powered Transdimensional Reconstructor Latent Energy Streamer Neutron Missile Launcher Sigix Terminator [Rating: 225] Favorites ----------- Power Micro Fission Core Engine Light Ion Engine Power Core Micro Fission Core Reactor Light Antimatter Reactor Propulsion Improved VTOL Module Treads Light Treads Leg Carbon-fiber Leg Wheel Armored Wheel Flight Unit Improved VTOL Module Utility Large Storage Unit Device Long-range Sensor Array Storage Large Storage Unit Processor Experimental Signal Interpreter Hackware Ghost Barrier Protection Light Armor Plating Weapon Longsword +1 Energy Gun Small Laser Energy Cannon Light EM Pulse Cannon Ballistic Gun Improved Assault Rifle Launcher Heavy Rocket Launcher Slashing Weapon Longsword +1 Build | -11 -10 -10 -9 -9 -9 -8 -8 -7 -7 -7 -7 -6 -6 -6 -6 -6 -5 -5 -5 -5 -5 -4 -4 -4 -4 -4 -4 -4 -3 -3 -3 -2 -2 -2 -1 -1 -1 ------- Run | Scr Mat Min Mat Min Exi Min Mat Fac Low Low Zio Pro Fac Low Low Dat Pro Fac Upp Upp Zhi Pro Fac Was Fac Upp Upp War Pro Res Qua Res Tes Sec Acc Com Ac0 Slots Evolved 18 | . . . 2 . . . 2 2 . . . . 2 . . . . 2 . . . . 2 . . . . . . 2 . 2 . . 2 . . Power . | . . . . . . . . . . . . . . . . . . . . . . . . . . . . . . . . . . . . . . Propulsion 4 | . . . 1 . . . . 1 . . . . 1 . . . . . . . . . 1 . . . . . . . . . . . . . . Utility 12 | . . . 1 . . . 2 1 . . . . 1 . . . . 2 . . . . 1 . . . . . . 2 . 2 . . . . . Weapon 2 | . . . . . . . . . . . . . . . . . . . . . . . . . . . . . . . . . . . 2 . . Parts Attached 417 | 1 21 6 19 . 45 . 41 15 5 2 4 10 17 2 . 5 1 10 2 4 13 3 12 . 17 1 . 6 2 20 16 8 30 42 10 9 18 Power 30 | . 7 . 4 . 5 . . 1 . . . . 1 . . . . 2 . . 1 . . . 2 . . 3 . 1 . . . . . . 3 Engine 15 | . 7 . 4 . 1 . . 1 . . . . . . . . . 1 . . . . . . . . . 1 . . . . . . . . . Core 10 | . . . . . 4 . . . . . . . . . . . . 1 . . 1 . . . 2 . . 1 . 1 . . . . . . . Reactor 5 | . . . . . . . . . . . . . 1 . . . . . . . . . . . . . . 1 . . . . . . . . 3 Propulsion 70 | . 4 2 5 . 13 . 13 4 . . . . 4 1 . 1 . 2 . . 4 . 3 . 1 . . . . 2 2 . 1 . . . 8 Treads 21 | . . . 5 . 7 . 9 . . . . . . . . . . . . . . . . . . . . . . . . . . . . . . Leg 9 | . . . . . 6 . 3 . . . . . . . . . . . . . . . . . . . . . . . . . . . . . . Wheel 6 | . 4 2 . . . . . . . . . . . . . . . . . . . . . . . . . . . . . . . . . . . Hover . | . . . . . . . . . . . . . . . . . . . . . . . . . . . . . . . . . . . . . . Flight 34 | . . . . . . . 1 4 . . . . 4 1 . 1 . 2 . . 4 . 3 . 1 . . . . 2 2 . 1 . . . 8 Utility 216 | 1 2 . 3 . 16 . 9 6 1 1 3 6 8 1 . 4 1 6 2 2 8 1 8 . 13 1 . 3 2 17 14 6 18 40 7 4 2 Device 141 | . . . . . 5 . 1 4 1 1 3 6 5 1 . 1 1 1 1 2 4 1 3 . 11 1 . 3 1 14 13 5 14 30 5 3 . Storage 28 | 1 2 . 1 . 7 . 3 . . . . . 1 . . 1 . 1 . . 1 . 2 . 2 . . . . . . 1 3 . . 1 1 Processor 6 | . . . . . . . 2 1 . . . . . . . . . . . . . . 1 . . . . . . 1 . . . . 1 . . Hackware 13 | . . . . . . . . 1 . . . . 2 . . 2 . 3 . . . . 2 . . . . . 1 2 . . . . . . . Protection 28 | . . . 2 . 4 . 3 . . . . . . . . . . 1 1 . 3 . . . . . . . . . 1 . 1 10 1 . 1 Artifact . | . . . . . . . . . . . . . . . . . . . . . . . . . . . . . . . . . . . . . . Weapon 101 | . 8 4 7 . 11 . 19 4 4 1 1 4 4 . . . . . . 2 . 2 1 . 1 . . . . . . 2 11 2 3 5 5 Energy Gun 7 | . 4 1 . . . . 1 . . . . . . . . . . . . . . . . . . . . . . . . . 1 . . . . Energy Cannon 16 | . . . 2 . 5 . . . . . . . . . . . . . . . . . . . . . . . . . . 1 3 1 1 2 1 Ballistic Gun 29 | . 4 3 5 . 4 . 12 . . 1 . . . . . . . . . . . . . . . . . . . . . . . . . . . Ballistic Cannon . | . . . . . . . . . . . . . . . . . . . . . . . . . . . . . . . . . . . . . . Launcher 7 | . . . . . . . 4 . . . . . 1 . . . . . . 1 . 1 . . . . . . . . . . . . . . . Special Weapon . | . . . . . . . . . . . . . . . . . . . . . . . . . . . . . . . . . . . . . . Impact Weapon . | . . . . . . . . . . . . . . . . . . . . . . . . . . . . . . . . . . . . . . Slashing Weapon 42 | . . . . . 2 . 2 4 4 . 1 4 3 . . . . . . 1 . 1 1 . 1 . . . . . . 1 7 1 2 3 4 Piercing Weapon . | . . . . . . . . . . . . . . . . . . . . . . . . . . . . . . . . . . . . . . Special Melee Weapon . | . . . . . . . . . . . . . . . . . . . . . . . . . . . . . . . . . . . . . . Unidentified Prototypes 39 | . . . 1 . 6 . 3 . . . 2 . 1 . . . . 2 . 1 5 . . . . . . 2 . . 2 . 7 1 . . 6 Parts Lost 54 | . 4 4 8 . 7 . 6 . . . . . 1 . . 1 . 1 . . . . . . . . . . . . . . . 3 3 1 15 Power 7 | . 1 . 2 . 1 . . . . . . . . . . . . 1 . . . . . . . . . . . . . . . . . . 2 Propulsion 15 | . . 2 3 . 3 . 3 . . . . . . . . 1 . . . . . . . . . . . . . . . . . . . . 3 Utility 23 | . . . 1 . 2 . 2 . . . . . 1 . . . . . . . . . . . . . . . . . . . . 3 3 1 10 Weapon 9 | . 3 2 2 . 1 . 1 . . . . . . . . . . . . . . . . . . . . . . . . . . . . . . Highest Loss Streak 7 | . 3 3 7 . 5 . 2 . . . . . 1 . . 1 . 1 . . . . . . . . . . . . . . . 1 2 1 7 Average Slot Usage (%) 90 | . 99 98 93 100 96 100 96 84 87 84 84 83 89 93 93 93 93 88 88 87 80 88 90 90 92 95 95 94 95 91 89 88 87 86 79 76 59 Engine 3 | . 14 14 9 11 5 . . 6 7 7 7 7 . . . . . 2 . . . . . 5 5 5 5 4 5 1 . . . . . . . Core 4 | . . . . . 5 11 9 . . . . . . . . . . 2 5 5 5 11 9 5 4 5 5 4 5 6 9 8 8 8 7 7 1 Treads 5 | . . . 12 33 23 . 15 . . . . . . . . . . . . . . . . . . . . . . . . . . . . . . Leg 2 | . 3 . . . 8 33 11 . . . . . . . . . . . . . . . . . . . . . . . . . . . . . . Wheel 2 | . 24 26 18 . . . . . . . . . . . . . . . . . . . . . . . . . . . . . . . . . . Flight 13 | . . . . . . . . 29 30 30 30 30 32 33 33 33 33 24 23 22 19 22 24 25 25 25 25 25 25 19 17 16 13 12 11 11 12 Device 7 | . . . . . 3 . . 14 14 15 15 13 12 13 13 10 13 7 5 4 4 4 5 5 5 5 5 5 5 4 4 12 12 14 18 19 15 Storage 18 | . 28 28 22 22 25 33 31 15 15 15 15 15 13 13 13 16 13 11 11 11 11 11 11 15 15 15 15 15 15 13 13 12 16 16 10 7 4 Processor 4 | . . . . . . . 4 7 7 7 7 7 6 6 6 6 6 5 5 5 5 5 5 5 5 5 5 5 5 8 9 8 8 8 4 3 3 Hackware 11 | . . . . . . . . 6 7 7 7 7 12 13 13 13 13 25 29 28 27 27 27 25 25 25 25 25 25 27 25 20 19 15 6 3 1 Protection 1 | . . . 9 11 2 . 5 . . . . . . . . . . . . . . . . . . . . . . . . . . . 5 7 2 Energy Gun 1 | . 17 13 3 . . . . . . . . . . . . . . . . . . . . . . . . . . . . . . . . . . Ballistic Gun 5 | . 10 14 12 22 15 22 16 . . . . . . . . . . . . . . . . . . . . . . . . . . . . . . Slashing Weapon 4 | . . . . . . . . . 3 . . 1 3 6 6 6 6 5 5 5 5 4 6 5 7 10 10 10 10 9 9 8 7 7 11 14 13 Naked Turns . | . . . . . . . . . . . . . . . . . . . . . . . . . . . . . . . . . . . . . . Heaviest Build 107 | 17 41 40 46 44 76 75 83 37 37 34 36 37 43 40 40 44 40 42 42 42 47 50 55 52 56 54 54 54 54 58 59 79 101 98 107 99 100 Greatest Support 103 | 20 24 24 60 60 90 50 80 36 36 36 36 36 42 44 44 46 46 46 42 42 47 55 64 56 56 56 56 64 56 68 72 81 101 101 101 101 103 Greatest Overweight (x) 12 | . 3 3 1 . 1 1 4 12 1 . 1 1 1 1 1 1 1 1 . . 1 . . . 1 . . . . 1 . 1 1 4 4 . . Average Overweight (x) . | . . 1 . . . 1 1 . . . . . . . . . . . . . . . . . . . . . . . . . . . . . . Largest Inventory Capacity 26 | 8 16 16 18 16 22 22 26 26 14 14 14 14 14 14 14 14 14 16 16 16 16 16 20 20 20 20 20 20 20 20 20 26 26 26 26 14 14 Average Capacity 18 | 6 14 16 16 16 17 22 23 14 14 14 14 14 14 14 14 14 14 14 16 16 16 16 17 20 20 20 20 20 20 20 20 21 25 26 18 14 10 Most Carried 26 | 6 13 14 16 15 22 22 26 26 14 14 14 14 14 14 14 14 13 15 16 16 16 16 18 19 20 20 20 20 20 20 20 21 26 26 22 14 14 Average Carried 17 | 6 10 12 14 15 16 22 23 14 13 13 13 13 12 13 14 13 13 13 15 16 15 16 16 18 19 20 20 19 20 19 19 19 25 25 15 13 10 Final Capacity 26 | 8 16 16 16 16 22 22 26 14 14 14 14 14 14 14 14 14 14 16 16 16 16 16 20 20 20 20 20 20 20 20 20 26 26 26 14 14 4 Final Carried 26 | 6 13 12 15 15 22 22 26 14 14 14 14 14 14 14 14 13 13 15 16 16 16 16 18 19 20 20 20 20 20 20 20 21 26 22 12 13 4 Class Distribution -------------------- 25% | Wizard-Sprinter 20% | Mutant 14% | Hauler-Mutant 10% | Scavenger-Mutant 9% | Wizard-Mutant 5% | Wizard-Scout 3% | Machinist-Mutant 3% | Sprinter Dominant Class ---------------- Mutant | -10/Materials Mutant | -10/Mines Mutant | -9/Materials Mutant | -9/Mines Hauler-Mutant | -9/Exiles Hauler-Mutant | -8/Mines Hauler-Mutant | -8/Materials Mutant | -7/Factory Mutant | -7/Lower Caves Mutant | -7/Lower Caves Mutant | -7/Zion Sprinter | -6/Proximity Caves Scavenger-Sprinter | -6/Factory Scavenger-Mutant | -6/Lower Caves Scavenger-Mutant | -6/Lower Caves Scavenger-Mutant | -6/Data Miner Hacker-Mutant | -5/Proximity Caves Wizard-Sprinter | -5/Factory Wizard-Sprinter | -5/Upper Caves Wizard-Sprinter | -5/Upper Caves Wizard-Mutant | -5/Zhirov Wizard-Sprinter | -4/Proximity Caves Wizard-Sprinter | -4/Factory Wizard-Sprinter | -4/Waste Wizard-Sprinter | -4/Factory Wizard-Sprinter | -4/Upper Caves Wizard-Sprinter | -4/Upper Caves Wizard-Sprinter | -4/Warlord Wizard-Sprinter | -3/Proximity Caves Wizard-Sprinter | -3/Research Wizard-Sprinter | -3/Quarantine Wizard-Scout | -2/Research Wizard-Scout | -2/Testing Wizard-Mutant | -2/Section 7 Machinist-Mutant | -1/Access Machinist-Mutant | -1/Command Machinist-Mutant | -1/Access_0 Resources | -11 -10 -10 -9 -9 -9 -8 -8 -7 -7 -7 -7 -6 -6 -6 -6 -6 -5 -5 -5 -5 -5 -4 -4 -4 -4 -4 -4 -4 -3 -3 -3 -2 -2 -2 -1 -1 -1 ----------- Run | Scr Mat Min Mat Min Exi Min Mat Fac Low Low Zio Pro Fac Low Low Dat Pro Fac Upp Upp Zhi Pro Fac Was Fac Upp Upp War Pro Res Qua Res Tes Sec Acc Com Ac0 Matter Collected 5660 | 210 423 65 222 . 712 60 970 140 50 40 44 110 117 110 . . . 140 . 58 126 20 118 . 261 4 31 119 10 190 200 80 246 449 245 10 80 Remotely 10 | . . . . . 10 . . . . . . . . . . . . . . . . . . . . . . . . . . . . . . . . Salvage Created 9346 | 88 764 134 719 . 568 161 1677 150 127 . . 52 63 . . 25 . 246 . 65 264 56 194 . 295 21 . . . 284 128 803 249 704 1227 282 . Parts 455 | 4 42 9 48 . 57 10 91 4 . . . 2 8 . . 3 . 10 . 12 1 10 6 . 9 2 . . . 13 5 16 10 23 47 13 . Haulers Intercepted 15 | . 1 . 1 . . . 4 . . . . . . . . . . 2 . . . . . . . . . . . . 1 4 1 1 . . . Recyclers Shooed 2 | . . . . . . . 1 . . . . . . . . . . . . . . . . . . . . . . . . . 1 . . . . Parts Field Recycled . | . . . . . . . . . . . . . . . . . . . . . . . . . . . . . . . . . . . . . . Retrieved Matter . | . . . . . . . . . . . . . . . . . . . . . . . . . . . . . . . . . . . . . . Parts Self-Destructed 101 | . . . . . . . . . . . . 20 . 6 . . . . . 9 1 6 . . . 1 . 53 5 . . . . . . . . Prevented 14 | . . . . . . . . . . . . . . . . . . . . . . . . . . . . 14 . . . . . . . . . Kills | -11 -10 -10 -9 -9 -9 -8 -8 -7 -7 -7 -7 -6 -6 -6 -6 -6 -5 -5 -5 -5 -5 -4 -4 -4 -4 -4 -4 -4 -3 -3 -3 -2 -2 -2 -1 -1 -1 ------- Run | Scr Mat Min Mat Min Exi Min Mat Fac Low Low Zio Pro Fac Low Low Dat Pro Fac Upp Upp Zhi Pro Fac Was Fac Upp Upp War Pro Res Qua Res Tes Sec Acc Com Ac0 Combat Hostiles Destroyed 119 | . 15 5 16 . 2 5 33 3 . . . 1 3 . . . . . . 5 . 5 2 . . 1 . . . . . . . 5 16 2 . Melee 24 | . . . . . 1 . 5 3 . . . 1 . . . . . . . . . 1 . . . 1 . . . . . . . . 12 . . Guns 56 | . 15 5 8 . . 5 23 . . . . . . . . . . . . . . . . . . . . . . . . . . . . . . Cannons 6 | . . . 5 . 1 . . . . . . . . . . . . . . . . . . . . . . . . . . . . . . . . AOE 32 | . . . 2 . . . 5 . . . . . 3 . . . . . . 5 . 4 2 . . . . . . . . . . 5 4 2 . Classes Destroyed 19 | 1 5 . 3 . 3 . 3 . 1 . . 1 . . . . . . . . . . . . . . . . . 1 . . . . 1 . . Worker 12 | . 2 . . . . . 3 . . . . . 1 . . . . 2 . . . . . . . . . . . . . 3 1 . . . . Builder 6 | . . . 1 . . . 2 . . . . . . . . . . . . . . . . . . . . . . 1 . 1 1 . . . . Tunneler 1 | . . . . . . . . . . . . . . . . . . . . . . . . . . . . . . 1 . . . . . . . Hauler 15 | . 1 . 1 . . . 4 . . . . . . . . . . 2 . . . . . . . . . . . . 1 4 1 1 . . . Recycler 15 | 1 2 . . . . . 2 . . . . . . . . . . . . . . . 1 . 1 . . . . 1 . 2 1 3 1 . . Minesweeper 1 | . . . . . . . . . . . . 1 . . . . . . . . . . . . . . . . . . . . . . . . . Operator 1 | . 1 . . . . . . . . . . . . . . . . . . . . . . . . . . . . . . . . . . . . Turret 1 | . . . . . 1 . . . . . . . . . . . . . . . . . . . . . . . . . . . . . . . . Watcher 13 | . . . . . . . 2 . . . . . 1 . . . . 1 . . . . . . 3 . . . . 3 1 . . 1 1 . . Swarmer 52 | . 6 3 4 . . 3 10 1 . . . . 3 . . . . . . 5 . 5 . . . 1 . . . . . . . 5 4 2 . Grunt 37 | . 9 2 7 . . 2 16 1 . . . . . . . . . . . . . . . . . . . . . . . . . . . . . Brawler 3 | . . . . . . . 1 1 . . . . . . . . . . . . . . . . . . . . . . . . . . 1 . . Duelist 1 | . . . 1 . . . . . . . . . . . . . . . . . . . . . . . . . . . . . . . . . . Sentry 9 | . . . 4 . . . 5 . . . . . . . . . . . . . . . . . . . . . . . . . . . . . . Hunter 4 | . . . . . . . 1 . . . . 1 . . . . . . . . . . 2 . . . . . . . . . . . . . . Programmer 2 | . . . . . . . . . . . . . . . . . . . . . . . . . . . . . . . . . . . 2 . . Tracker 5 | . . . . . . . . . . . . . . . . . . . . . . . . . . . . . . . . . . . 5 . . Combat Programmer 4 | . . . . . . . . . . . . . . . . . . . . . . . . . . . . . . . . . . . 4 . . Zionite 8 | . . . . . 8 . . . . . . . . . . . . . . . . . . . . . . . . . . . . . . . . Packrat 1 | . . . . . . . . . 1 . . . . . . . . . . . . . . . . . . . . . . . . . . . . Samaritan 1 | . . . . . . . . . 1 . . . . . . . . . . . . . . . . . . . . . . . . . . . . Assembled 7 | . . . . . 7 . . . . . . . . . . . . . . . . . . . . . . . . . . . . . . . . Best Kill Streak 14 | 1 6 3 5 . 3 3 14 3 . . . 1 4 . . 1 . 2 . 5 . 5 2 . 1 1 . . . 1 1 6 1 6 5 2 . Combat Bots Only 9 | . 4 3 4 . 1 3 9 3 . . . 1 3 . . . . . . 5 . 5 2 . . 1 . . . . . . . 5 4 2 . Max Kills in Single Turn 6 | 1 1 1 3 . 6 1 3 1 1 . . 1 2 . . 1 . 1 . 5 . 2 2 . 1 1 . . . 1 1 4 1 5 2 2 . Gunslinging . | . . . . . . . . . . . . . . . . . . . . . . . . . . . . . . . . . . . . . . Exploded 5 | . . . 2 . . . 2 . . . . . 2 . . . . . . 5 . 2 2 . . . . . . . . . . 5 2 2 . Melee 1 | . . . . . 1 . 1 1 . . . 1 . . . . . . . . . 1 . . . 1 . . . . . . . . 1 . . Uniques/NPCs Destroyed 3 | . . . . . 2 . . . . . . . . . . 1 . . . . . . . . . . . . . . . . . . . . . 8R-AWN (-9/Exiles) EX-DEC (-9/Exiles) EX-BIN (-9/Exiles) EX-HEX (-9/Exiles) Data Miner (-6/Data Miner) Combat | -11 -10 -10 -9 -9 -9 -8 -8 -7 -7 -7 -7 -6 -6 -6 -6 -6 -5 -5 -5 -5 -5 -4 -4 -4 -4 -4 -4 -4 -3 -3 -3 -2 -2 -2 -1 -1 -1 -------- Run | Scr Mat Min Mat Min Exi Min Mat Fac Low Low Zio Pro Fac Low Low Dat Pro Fac Upp Upp Zhi Pro Fac Was Fac Upp Upp War Pro Res Qua Res Tes Sec Acc Com Ac0 Damage Taken 17120 | . 679 346 1073 . 1369 210 1794 117 . 6 . 181 112 . 78 231 . 100 . 106 . 175 119 . . 21 . 21 24 71 . . 93 1393 2822 1807 4172 Core 2786 | . 161 55 129 . 104 43 152 75 . . . 67 34 . 30 47 . 32 . 60 . 17 23 . . 21 . . . 46 . . . 348 225 217 900 Absorbed by Shields 4324 | . . . . . . . . . . . . . . . . . . 35 . . . . . . . . . . . . . . . 811 1772 1021 685 Core Remaining (%) 70 | 100 . 13 . . . 31 72 . . . . 79 . . . . 86 . . . . 89 . . . . . . 96 . 90 . . 47 . . . Volleys Fired 363 | 4 87 16 68 . 55 10 93 . . 8 . . 3 . . . . . . 1 . 5 . . . . . . . . . 1 . 1 4 3 4 Largest 2 | 2 2 2 2 . 2 2 2 . . 1 . . 1 . . . . . . 1 . 1 . . . . . . . . . 1 . 1 1 1 1 Hottest 200 | 100 100 60 96 . 112 46 98 . . 25 . . 39 . . . . . . 39 . 39 . . . . . . . . . 60 . 60 60 200 200 Shots Fired 640 | 8 173 32 115 . 78 20 184 . . 8 . . 3 . . . . . . 1 . 5 . . . . . . . . . 1 . 1 4 3 4 Gun 552 | 8 173 32 90 . 42 20 179 . . 8 . . . . . . . . . . . . . . . . . . . . . . . . . . . Cannon 74 | . . . 25 . 36 . . . . . . . . . . . . . . . . . . . . . . . . . . 1 . 1 4 3 4 Launcher 14 | . . . . . . . 5 . . . . . 3 . . . . . . 1 . 5 . . . . . . . . . . . . . . . Special . | . . . . . . . . . . . . . . . . . . . . . . . . . . . . . . . . . . . . . . Kinetic 407 | . 77 20 72 . 42 20 168 . . 8 . . . . . . . . . . . . . . . . . . . . . . . . . . . Thermal 126 | 8 94 7 . . . . 11 . . . . . . . . . . . . . . . . . . . . . . . . . . . . 2 4 Explosive 14 | . . . . . . . 5 . . . . . 3 . . . . . . 1 . 5 . . . . . . . . . . . . . . . Electromagnetic 93 | . 2 5 43 . 36 . . . . . . . . . . . . . . . . . . . . . . . . . . 1 . 1 4 1 . Robot Hit Streak 35 | 3 10 7 25 . 35 9 28 . . 5 . . 1 . . . . . . . . 1 . . . . . . . . . 1 . . 2 . . Robot Miss Streak 9 | 3 9 4 2 . 1 2 3 . . 2 . . 4 . . . . . . . . 3 . . . . . . . . . . . . . . 2 Penetration Max . | . . . . . . . . . . . . . . . . . . . . . . . . . . . . . . . . . . . . . . Secondary Targets 9 | . . 2 1 . . 3 3 . . . . . . . . . . . . . . . . . . . . . . . . . . . . . . Max Gunslinging Chain 1 | . . 1 1 . . 1 1 . . . . . . . . . . . . . . . . . . . . . . . . . . . . . . Shots Hit Robots 630 | 3 104 20 84 . 91 14 143 9 3 5 . 2 3 . . 1 . 10 . . 6 2 1 . 7 1 . 1 . 16 5 11 12 19 53 4 . Core Hits 333 | 2 35 9 37 . 42 9 72 4 1 . . 2 5 . . 1 . 4 . 5 3 6 3 . 4 1 . . . 7 2 10 4 12 38 12 3 Critical Hits 8 | . 2 . . . 2 . 2 . . . . . . . . 1 . . . . . . . . . . . . . . . . . . 1 . . Critical Kills 3 | . . . . . . . 2 . . . . . . . . . . . . . . . . . . . . . . . . . . . 1 . . Critical Parts Destroyed 3 | . 2 . . . 1 . . . . . . . . . . . . . . . . . . . . . . . . . . . . . . . . Melee Attacks 734 | . . . . . 27 . 12 13 14 . . 7 19 23 2 6 11 30 5 27 6 10 31 . 31 9 3 12 1 74 44 28 48 117 70 38 16 Impact . | . . . . . . . . . . . . . . . . . . . . . . . . . . . . . . . . . . . . . . Slashing 734 | . . . . . 27 . 12 13 14 . . 7 19 23 2 6 11 30 5 27 6 10 31 . 31 9 3 12 1 74 44 28 48 117 70 38 16 Piercing . | . . . . . . . . . . . . . . . . . . . . . . . . . . . . . . . . . . . . . . Sneak Attacks 35 | . . . . . 4 . . . 3 . . 1 1 . . 1 . 5 . . . . 1 . 2 . . . . 3 1 5 4 4 . . . Combat Hostiles . | . . . . . . . . . . . . . . . . . . . . . . . . . . . . . . . . . . . . . . Follow-up Attacks 33 | . . . . . . . . . . . . . . . . . . . . . . . . . . . . . . 2 . 1 1 2 25 2 . Damage Inflicted 25210 | 51 1020 232 1135 . 3048 193 2920 352 399 89 . 185 381 . . 153 . 1040 . 339 879 499 703 . 636 53 . 44 . 1110 422 1717 1015 1910 3337 1041 307 Guns 4487 | 51 1020 232 567 . 449 193 1886 . . 89 . . . . . . . . . . . . . . . . . . . . . . . . . . . Cannons 584 | . . . 388 . 87 . . . . . . . . . . . . . . . . . . . . . . . . . . 10 . . 7 . 92 Explosions 5582 | . . . 180 . 919 . 600 . . . . . 195 . . . . . . 339 . 424 564 . . . . . . . . 664 . 589 503 390 215 Melee 14551 | . . . . . 1593 . 428 352 399 . . 185 186 . . 153 . 1040 . . 879 75 139 . 636 53 . 44 . 1110 422 1043 1015 1321 2827 651 . Ramming 6 | . . . . . . . 6 . . . . . . . . . . . . . . . . . . . . . . . . . . . . . . Kinetic 3385 | . 330 130 434 . 449 193 1760 . . 89 . . . . . . . . . . . . . . . . . . . . . . . . . . . Thermal 1823 | 51 656 46 . . 73 . 126 . . . . . . . . . . . . . . . 564 . . . . . . . . . . . . . 307 Explosive 1558 | . . . . . . . 600 . . . . . 195 . . . . . . 339 . 424 . . . . . . . . . . . . . . . Electromagnetic 3887 | . 34 56 701 . 933 . . . . . . . . . . . . . . . . . . . . . . . . . . 674 . 589 510 390 . Impact . | . . . . . . . . . . . . . . . . . . . . . . . . . . . . . . . . . . . . . . Slashing 14551 | . . . . . 1593 . 428 352 399 . . 185 186 . . 153 . 1040 . . 879 75 139 . 636 53 . 44 . 1110 422 1043 1015 1321 2827 651 . Piercing . | . . . . . . . . . . . . . . . . . . . . . . . . . . . . . . . . . . . . . . Highest Corruption 13 | . . . 1 1 13 . . . . . . . 1 1 1 1 1 . . . . . . 5 5 3 3 4 . . . 3 . . . . . Average Corruption 3 | . . . 1 1 4 . . . . . . . 1 1 1 1 1 . . . . . . 5 3 3 3 3 . . . 2 . . . . . Corruption Purged 18 | . . . . . 13 . . . . . . . . . . . . . . . . . . . 2 . . . . . . 3 . . . . . Effects 109 | . . . 4 1 77 . . . . . . . . 3 3 . . . . . . . . . 16 1 2 . . . . 2 . . . . . Message Errors 25 | . . . . 1 20 . . . . . . . . . 1 . . . . . . . . . 3 . . . . . . . . . . . . Matter Fused 17 | . . . . . 12 . . . . . . . . . . . . . . . . . . . 5 . . . . . . . . . . . . Heat Flow Errors 14 | . . . . . 10 . . . . . . . . . . . . . . . . . . . 2 1 1 . . . . . . . . . . Energy Discharges 13 | . . . . . 10 . . . . . . . . 1 1 . . . . . . . . . . . . . . . . 1 . . . . . Parts Rejected 1 | . . . . . 1 . . . . . . . . . . . . . . . . . . . . . . . . . . . . . . . . Data Loss (minor) 16 | . . . 1 . 6 . . . . . . . . 2 1 . . . . . . . . . 4 . 1 . . . . 1 . . . . . Data Loss (major) 4 | . . . . . 3 . . . . . . . . . . . . . . . . . . . 1 . . . . . . . . . . . . Misfires 3 | . . . . . 3 . . . . . . . . . . . . . . . . . . . . . . . . . . . . . . . . Targeting Errors 14 | . . . 3 . 10 . . . . . . . . . . . . . . . . . . . 1 . . . . . . . . . . . . Weapon Failures 2 | . . . . . 2 . . . . . . . . . . . . . . . . . . . . . . . . . . . . . . . . Overload Shots . | . . . . . . . . . . . . . . . . . . . . . . . . . . . . . . . . . . . . . . Overflow Damage 2322 | . . . . . 119 . 29 29 218 . . . 13 . . . . 316 . . 189 28 16 . 95 . . . . 206 . 355 221 353 127 8 . Projectiles 1 | . . . . . 1 . . . . . . . . . . . . . . . . . . . . . . . . . . . . . . . . Explosions 164 | . . . . . 58 . 9 . . . . . . . . . . . . . . 28 16 . . . . . . . . 39 . 3 3 8 . Melee 2157 | . . . . . 60 . 20 29 218 . . . 13 . . . . 316 . . 189 . . . 95 . . . . 206 . 316 221 350 124 . . Knockbacks . | . . . . . . . . . . . . . . . . . . . . . . . . . . . . . . . . . . . . . . Impact . | . . . . . . . . . . . . . . . . . . . . . . . . . . . . . . . . . . . . . . Kinetic . | . . . . . . . . . . . . . . . . . . . . . . . . . . . . . . . . . . . . . . Secondary . | . . . . . . . . . . . . . . . . . . . . . . . . . . . . . . . . . . . . . . Self-Inflicted Damage 73 | . . . 17 . . . 15 . . . . . . . . . . . . 24 . 17 . . . . . . . . . . . . . . . Shots 4 | . . . 1 . . . 1 . . . . . . . . . . . . 1 . 1 . . . . . . . . . . . . . . . Rammed 1 | . . . . . . . 1 . . . . . . . . . . . . . . . . . . . . . . . . . . . . . . Targets Rammed 1 | . . . . . . . 1 . . . . . . . . . . . . . . . . . . . . . . . . . . . . . . Kicked . | . . . . . . . . . . . . . . . . . . . . . . . . . . . . . . . . . . . . . . Crushed . | . . . . . . . . . . . . . . . . . . . . . . . . . . . . . . . . . . . . . . Highest Temperature 439 | 156 439 79 151 . 307 52 321 . . . . 5 2 3 3 5 . . . . . 12 64 . 265 284 114 . . 5 . 12 . . . 50 . Average Temperature 88 | 79 116 34 51 . 119 30 80 . . . . 5 2 2 1 3 . . . . . 6 33 . 150 184 58 . . 4 . 9 . . . 35 . Received Heat Transfer 2162 | . 216 129 399 . . 81 657 . . . . 21 . . 18 30 . 12 . 12 . 12 18 . . . . 12 . . . . 9 30 98 48 360 Effects 6 | . 4 . . . 1 . 1 . . . . . . . . . . . . . . . . . . . . . . . . . . . . . . Energy Bleed 3 | . 1 . . . 1 . 1 . . . . . . . . . . . . . . . . . . . . . . . . . . . . . . Interference 2 | . 2 . . . . . . . . . . . . . . . . . . . . . . . . . . . . . . . . . . . . Short Circuit 1 | . 1 . . . . . . . . . . . . . . . . . . . . . . . . . . . . . . . . . . . . Siege Activations . | . . . . . . . . . . . . . . . . . . . . . . . . . . . . . . . . . . . . . . Robots Corrupted 5 | . . . 1 . 1 . . . . . . . . . . . . . . . . . . . . . . . . . . 2 . 1 . . . Combat Hostiles 1 | . . . 1 . . . . . . . . . . . . . . . . . . . . . . . . . . . . . . . . . . Parts Fried 22 | . . . 9 . 2 . . . . . . . . . . . . . . . . . . . . . . . . . . 7 . . 2 2 . Impact Corruptions . | . . . . . . . . . . . . . . . . . . . . . . . . . . . . . . . . . . . . . . Robots Melted . | . . . . . . . . . . . . . . . . . . . . . . . . . . . . . . . . . . . . . . Combat Hostiles . | . . . . . . . . . . . . . . . . . . . . . . . . . . . . . . . . . . . . . . Parts Melted 3 | . 2 1 . . . . . . . . . . . . . . . . . . . . . . . . . . . . . . . . . . . Heat Transferred 2759 | 148 1783 100 . . 50 . 222 . . . . . . . . . . . . . . . 350 . . . . . . . . . . . . . 106 Parts Sabotaged . | . . . . . . . . . . . . . . . . . . . . . . . . . . . . . . . . . . . . . . Parts Stolen 1 | . . . . . . . . . . 1 . . . . . . . . . . . . . . . . . . . . . . . . . . . Parts Stripped . | . . . . . . . . . . . . . . . . . . . . . . . . . . . . . . . . . . . . . . Power Chain Reactions 1 | . . . . . 1 . . . . . . . . . . . . . . . . . . . . . . . . . . . . . . . . Missiles Intercepted . | . . . . . . . . . . . . . . . . . . . . . . . . . . . . . . . . . . . . . . Latent Energy Used 1604 | . . . . . 549 . . . . . . . . . . . . . . . . . . . . . . . . . . 191 . 200 525 139 . LE Corruption 27 | . . . . . 9 . . . . . . . . . . . . . . . . . . . . . . . . . . 3 . 3 9 3 . Alert | -11 -10 -10 -9 -9 -9 -8 -8 -7 -7 -7 -7 -6 -6 -6 -6 -6 -5 -5 -5 -5 -5 -4 -4 -4 -4 -4 -4 -4 -3 -3 -3 -2 -2 -2 -1 -1 -1 ------- Run | Scr Mat Min Mat Min Exi Min Mat Fac Low Low Zio Pro Fac Low Low Dat Pro Fac Upp Upp Zhi Pro Fac Was Fac Upp Upp War Pro Res Qua Res Tes Sec Acc Com Ac0 Peak Influence 877 | 5 302 130 395 88 . 120 559 389 . . . . 361 . . . . 519 . . . . 859 264 501 . . . . 490 133 219 218 474 877 524 . Average Influence 201 | 3 161 113 185 88 . 37 306 298 . . . . 191 . . . . 148 . . . . 441 248 332 . . . . 92 70 144 78 149 550 316 . Maximum Alert Level 3 | . 1 . 1 . . . 2 1 . . . . 1 . . . . 2 . . . . 3 1 2 . . . . 2 . 1 1 2 3 2 . Low Security (%) 58 | 100 59 100 42 100 . 100 39 . . . . . 64 . . . . 70 . . . . 41 . 9 . . . . 82 100 57 97 63 . 1 . Level 1 24 | . 40 . 57 . . . 13 100 . . . . 35 . . . . 27 . . . . 3 100 48 . . . . 10 . 42 2 29 18 67 . Level 2 15 | . . . . . . . 47 . . . . . . . . . . 1 . . . . 37 . 42 . . . . 7 . . . 6 57 31 . Level 3 1 | . . . . . . . . . . . . . . . . . . . . . . . 17 . . . . . . . . . . . 23 . . Level 4 . | . . . . . . . . . . . . . . . . . . . . . . . . . . . . . . . . . . . . . . Level 5 . | . . . . . . . . . . . . . . . . . . . . . . . . . . . . . . . . . . . . . . High Security . | . . . . . . . . . . . . . . . . . . . . . . . . . . . . . . . . . . . . . . Max Security . | . . . . . . . . . . . . . . . . . . . . . . . . . . . . . . . . . . . . . . Squads Dispatched 60 | . 7 . 1 . . . 7 1 . . . 1 3 . . . . 1 . . . . 3 . . . . . . 2 . . 5 16 11 2 . Investigation 14 | . 5 . . . . . . 1 . . . 1 2 . . . . . . . . . . . . . . . . 1 . . 1 1 1 1 . Extermination 10 | . . . . . . . . . . . . . 1 . . . . . . . . . 1 . . . . . . 1 . . 1 5 1 . . Reinforcement 19 | . 2 . 1 . . . 5 . . . . . . . . . . 1 . . . . . . . . . . . . . . 2 5 2 1 . Assault 3 | . . . . . . . . . . . . . . . . . . . . . . . 2 . . . . . . . . . 1 . . . . Garrison 2 | . . . . . . . 2 . . . . . . . . . . . . . . . . . . . . . . . . . . . . . . Intercept 12 | . . . . . . . . . . . . . . . . . . . . . . . . . . . . . . . . . . 5 7 . . Construction Impeded 2 | . . . . . . . 1 . . . . . . . . . . . . . . . . . . . . . . . . . 1 . . . . Haulers Reinforced 2 | . . . . . . . . . . . . . . . . . . . . . . . . . . . . . . . . . 1 1 . . . Stealth | -11 -10 -10 -9 -9 -9 -8 -8 -7 -7 -7 -7 -6 -6 -6 -6 -6 -5 -5 -5 -5 -5 -4 -4 -4 -4 -4 -4 -4 -3 -3 -3 -2 -2 -2 -1 -1 -1 --------- Run | Scr Mat Min Mat Min Exi Min Mat Fac Low Low Zio Pro Fac Low Low Dat Pro Fac Upp Upp Zhi Pro Fac Was Fac Upp Upp War Pro Res Qua Res Tes Sec Acc Com Ac0 Distress Signals 25 | . 3 . 1 . . . 2 1 . . . . . . . . . 1 . . . . 1 . . . . . . 2 1 5 2 3 2 1 . Communications Jammed . | . . . . . . . . . . . . . . . . . . . . . . . . . . . . . . . . . . . . . . Distress Signals . | . . . . . . . . . . . . . . . . . . . . . . . . . . . . . . . . . . . . . . Times Spotted 480 | . 32 5 21 . 18 6 45 6 . 1 . 10 8 . 5 4 1 5 . 7 . 10 11 5 5 4 . 12 4 19 4 3 6 79 58 51 35 Peak Tracking Total 26 | . 4 3 8 . 6 3 6 3 1 1 . 6 3 . 5 4 1 2 . 5 . 5 10 5 2 6 . 12 5 5 4 2 2 13 17 24 26 Tactical Retreats 62 | . . . . . 4 1 2 1 . . . 2 1 . . . . 1 . . . . 4 . . . . 1 1 4 1 . 1 14 12 7 5 Traps | -11 -10 -10 -9 -9 -9 -8 -8 -7 -7 -7 -7 -6 -6 -6 -6 -6 -5 -5 -5 -5 -5 -4 -4 -4 -4 -4 -4 -4 -3 -3 -3 -2 -2 -2 -1 -1 -1 ------- Run | Scr Mat Min Mat Min Exi Min Mat Fac Low Low Zio Pro Fac Low Low Dat Pro Fac Upp Upp Zhi Pro Fac Was Fac Upp Upp War Pro Res Qua Res Tes Sec Acc Com Ac0 Traps Triggered 17 | . 5 . 1 . . . . 1 . . . . 1 . . . . 3 . . . . 1 . 1 . . . . 2 . . . 1 1 . . Indirectly 1 | . . . . . . . . . . . . . . . . . . . . . . . . . . . . . . . . . . 1 . . . Trap Hack Attempts . | . . . . . . . . . . . . . . . . . . . . . . . . . . . . . . . . . . . . . . Triggered . | . . . . . . . . . . . . . . . . . . . . . . . . . . . . . . . . . . . . . . Disarmed 10 | . . . . . . . . . . . . . . . . . . . . . . . . . . . . . . 4 . . 6 . . . . Reprogrammed 46 | . . . . . . . . . . . . . . . . . . 6 . . . . 7 . 11 . . . . 10 1 . 6 4 1 . . Reused 31 | . . . . . . . . . . . . 2 . . . . . . . . . . 2 . 2 . . . . 1 . . 6 17 1 . . Traps Extracted . | . . . . . . . . . . . . . . . . . . . . . . . . . . . . . . . . . . . . . . Installed 3 | . . . . . . . . . . . . 3 . . . . . . . . . . . . . . . . . . . . . . . . . Triggered 51 | . . . 2 . . . . . . . . 2 . 3 . . . . . . . . 2 . 2 1 . 11 . 3 . . 6 17 1 1 . Machines | -11 -10 -10 -9 -9 -9 -8 -8 -7 -7 -7 -7 -6 -6 -6 -6 -6 -5 -5 -5 -5 -5 -4 -4 -4 -4 -4 -4 -4 -3 -3 -3 -2 -2 -2 -1 -1 -1 ---------- Run | Scr Mat Min Mat Min Exi Min Mat Fac Low Low Zio Pro Fac Low Low Dat Pro Fac Upp Upp Zhi Pro Fac Was Fac Upp Upp War Pro Res Qua Res Tes Sec Acc Com Ac0 Machines Disabled 51 | . . . 1 . 9 . 1 1 . . . . 1 1 . 1 . . . . . . 4 . . . . . . . 4 . 6 8 2 3 9 Max in Single Turn 4 | . . . 1 . 3 . 1 1 . . . . 1 1 . 1 . . . . . . 4 . . . . . . . 1 . 1 2 2 1 2 Garrison Access 12 | . . . . . . . 1 . . . . . . . . . . 1 . . . . . . 1 . . . . 3 1 2 1 1 1 . . Machines Sabotaged . | . . . . . . . . . . . . . . . . . . . . . . . . . . . . . . . . . . . . . . Garrisons Compromised . | . . . . . . . . . . . . . . . . . . . . . . . . . . . . . . . . . . . . . . Overloaded Fab Kills . | . . . . . . . . . . . . . . . . . . . . . . . . . . . . . . . . . . . . . . Fab Network Shutdowns 4 | . . . . . . . . . . . . . . . . . . 1 . . . . 1 . 1 . . . . 1 . . . . . . . Hacking | -11 -10 -10 -9 -9 -9 -8 -8 -7 -7 -7 -7 -6 -6 -6 -6 -6 -5 -5 -5 -5 -5 -4 -4 -4 -4 -4 -4 -4 -3 -3 -3 -2 -2 -2 -1 -1 -1 --------- Run | Scr Mat Min Mat Min Exi Min Mat Fac Low Low Zio Pro Fac Low Low Dat Pro Fac Upp Upp Zhi Pro Fac Was Fac Upp Upp War Pro Res Qua Res Tes Sec Acc Com Ac0 Machines Accessed 157 | . 8 . . . 2 . 4 4 . . . 1 12 1 1 4 . 11 1 . 5 . 13 . 11 . 2 1 . 17 14 3 11 17 8 6 . Terminals 98 | . 5 . . . . . . 4 . . . 1 8 . . . . 7 . . . . 10 . 6 . . . . 12 9 1 8 14 7 6 . Fabricators 8 | . . . . . . . . . . . . . 1 . . . . 1 . . . . 2 . 2 . . . . 1 . . 1 . . . . Repair Stations 8 | . 1 . . . . . 2 . . . . . 1 . . . . 1 . . . . 1 . 1 . . . . . 1 . . . . . . Recycling Units 3 | . 2 . . . . . . . . . . . . . . . . . . . . . . . 1 . . . . . . . . . . . . Scanalyzers 11 | . . . . . . . 1 . . . . . 2 . . . . 1 . . . . . . . . . . . 1 3 . 1 2 . . . Garrison Access 12 | . . . . . . . 1 . . . . . . . . . . 1 . . . . . . 1 . . . . 3 1 2 1 1 1 . . Total Hacks 666 | . 17 . . . 2 . 7 10 . . . 2 37 1 1 27 . 64 1 . 20 . 82 . 58 . 6 1 . 109 40 8 72 72 16 13 . Successful 528 | . 9 . . . 2 . 6 3 . . . . 21 1 1 27 . 52 1 . 20 . 67 . 47 . 6 1 . 97 38 8 63 47 9 2 . Failed 136 | . 8 . . . . . 1 7 . . . 2 16 . . . . 12 . . . . 15 . 11 . . . . 11 2 . 8 25 7 11 . Catastrophic 10 | . 1 . . . . . . 1 . . . 1 2 . . . . . . . . . 1 . . . . . . . . . . 2 2 . . Database Lockouts 2 | . . . . . . . . . . . . . . . . . . . . . . . . . . . . . . 1 . . 1 . . . . Manual 357 | . 10 . . . 1 . . 9 . . . 2 23 . . . . 37 . . . . 49 . 37 . . . . 68 17 5 42 45 6 6 . Terminals 467 | . 13 . . . . . . 10 . . . 2 27 . . . . 41 . . . . 62 . 42 . . . . 87 31 6 56 62 15 13 . Fabricators 58 | . . . . . . . . . . . . . 4 . . . . 9 . . . . 10 . 10 . . . . 15 . . 10 . . . . Repair Stations 28 | . 2 . . . . . 4 . . . . . 2 . . . . 4 . . . . 10 . 2 . . . . . 4 . . . . . . Recycling Units 5 | . 2 . . . . . . . . . . . . . . . . . . . . . . . 3 . . . . . . . . . . . . Scanalyzers 30 | . . . . . . . 2 . . . . . 4 . . . . 4 . . . . . . . . . . . 4 4 . 5 7 . . . Garrison Access 19 | . . . . . . . 1 . . . . . . . . . . 6 . . . . . . 1 . . . . 3 1 2 1 3 1 . . Terminal Hacks 286 | . 3 . . . 2 . . 1 . . . . 9 1 1 27 . 20 1 . 20 . 34 . 18 . 6 1 . 51 17 4 34 27 8 1 . Record 30 | . . . . . 1 . . . . . . . . 1 . 11 . . . . 8 . 1 . . . 5 . . . . . 1 2 . . . Part Schematic 40 | . 1 . . . . . . . . . . . 5 . . 7 . 5 . . 4 . 7 . 2 . . . . 6 1 . 2 . . . . Robot Schematic 7 | . . . . . . . . . . . . . . . . 6 . . . . . . . . . . . . . . . . 1 . . . . Robot Analysis 15 | . . . . . . . . . . . . . 1 . . . . 1 . . 4 . 1 . . . . . . 5 1 . 1 1 . . . Prototype ID Bank 10 | . . . . . . . . . . . . . . . . 3 . . . . 4 . 1 . 1 . . . . . . . 1 . . . . Open Door 12 | . . . . . . . . . . . . . . . 1 . . 1 1 . . . . . . . 1 1 . . . . . 3 3 1 . Level Access Points 2 | . . . . . . . . . . . . . . . . . . . . . . . . . . . . . . . 1 . . 1 . . . Branch Access Points 6 | . . . . . . . . 1 . . . . . . . . . 1 . . . . 1 . 1 . . . . 1 . . 1 . . . . Emergency Access Points 3 | . . . . . . . . . . . . . . . . . . . . . . . 1 . 1 . . . . . 1 . . . . . . Machine Index 3 | . . . . . . . . . . . . . . . . . . . . . . . . . . . . . . . . . 1 1 1 . . Terminal Index 5 | . . . . . . . . . . . . . 1 . . . . 1 . . . . . . 1 . . . . 1 1 . . . . . . Fabricator Index 6 | . . . . . . . . . . . . . 1 . . . . 1 . . . . 1 . 1 . . . . 1 . 1 . . . . . Repair Station Index 1 | . . . . . . . . . . . . . . . . . . . . . . . . . . . . . . . 1 . . . . . . Scanalyzer Index 2 | . . . . . . . . . . . . . . . . . . . . . . . . . . . . . . 1 1 . . . . . . Garrison Index 1 | . . . . . . . . . . . . . . . . . . . . . . . . . . . . . . 1 . . . . . . . Alert Level 3 | . . . . . . . . . . . . . . . . . . . . . . . . . . . . . . 1 . . 2 . . . . Unreport Threat 8 | . . . . . . . . . . . . . . . . . . . . . . . . . . . . . . 3 1 . 1 . 3 . . Locate Traps 10 | . . . . . . . . . . . . . . . . . . 1 . . . . 2 . . . . . . 2 1 . 2 2 . . . Disarm Traps 2 | . . . . . . . . . . . . . . . . . . . . . . . . . . . . . . 1 . . 1 . . . . Reprogram Traps 11 | . . . . . . . . . . . . . . . . . . 1 . . . . 2 . 2 . . . . 2 1 . 1 1 1 . . Dispatch Records 1 | . . . . . . . . . . . . . . . . . . . . . . . . . 1 . . . . . . . . . . . . Maintenance Status 6 | . . . . . . . . . . . . . . . . . . 1 . . . . 1 . . . . . . 1 . 1 1 1 . . . Security Status 4 | . . . . . . . . . . . . . . . . . . . . . . . . . . . . . . 2 1 . 1 . . . . Surveillance Status 3 | . . . . . . . . . . . . . . . . . . . . . . . . . 1 . . . . 1 . . 1 . . . . Patrol Status 25 | . . . . . . . . . . . . . . . . . . 3 . . . . 4 . 2 . . . . 8 2 1 3 2 . . . Transport Status 3 | . . . . . . . . . . . . . . . . . . . . . . . 1 . . . . . . . . . 1 1 . . . Reinforcement Status 1 | . . . . . . . . . . . . . . . . . . . . . . . . . . . . . . . . . . 1 . . . Garrison Status 1 | . . . . . . . . . . . . . . . . . . . . . . . . . . . . . . 1 . . . . . . . Coupling Status 1 | . . . . . . . . . . . . . . . . . . . . . . . 1 . . . . . . . . . . . . . . Recall Investigation 6 | . 2 . . . . . . . . . . . 1 . . . . . . . . . . . . . . . . 1 . . 1 1 . . . Recall Extermination 7 | . . . . . . . . . . . . . . . . . . . . . . . 1 . . . . . . 1 . . 1 4 . . . Recall Reinforcements 5 | . . . . . . . . . . . . . . . . . . . . . . . . . . . . . . . . . 2 3 . . . Recall Assault 1 | . . . . . . . . . . . . . . . . . . . . . . . 1 . . . . . . . . . . . . . . Hauler Manifests 3 | . . . . . . . . . . . . . . . . . . . . . . . 1 . . . . . . 1 . . 1 . . . . Registered Components 3 | . . . . . . . . . . . . . . . . . . . . . . . 2 . . . . . . . . . 1 . . . . Registered Prototypes 2 | . . . . . . . . . . . . . . . . . . . . . . . 1 . . . . . . . . . 1 . . . . Zone Layout 33 | . . . . . . . . . . . . . . . . . . 4 . . . . 4 . 5 . . . . 10 4 1 2 3 . . . EX-Prototype ID Bank 1 | . . . . . 1 . . . . . . . . . . . . . . . . . . . . . . . . . . . . . . . . Protovariant Controls 3 | . . . . . . . . . . . . . . . . . . . . . . . . . . . . . . . . . 3 . . . . Fabricator Hacks 43 | . . . . . . . . . . . . . 2 . . . . 7 . . . . 7 . 6 . . . . 13 . . 8 . . . . Network Status 1 | . . . . . . . . . . . . . . . . . . 1 . . . . . . . . . . . . . . . . . . . Load Schematic 21 | . . . . . . . . . . . . . 1 . . . . 3 . . . . 3 . 3 . . . . 7 . . 4 . . . . Build 21 | . . . . . . . . . . . . . 1 . . . . 3 . . . . 4 . 3 . . . . 6 . . 4 . . . . Repair Station Hacks 26 | . 2 . . . . . 3 . . . . . 2 . . . . 4 . . . . 9 . 2 . . . . . 4 . . . . . . Scan Component 13 | . 1 . . . . . 2 . . . . . 1 . . . . 2 . . . . 4 . 1 . . . . . 2 . . . . . . Repair 12 | . 1 . . . . . 1 . . . . . 1 . . . . 2 . . . . 4 . 1 . . . . . 2 . . . . . . Refit 1 | . . . . . . . . . . . . . . . . . . . . . . . 1 . . . . . . . . . . . . . . Recycling Unit Hacks . | . . . . . . . . . . . . . . . . . . . . . . . . . . . . . . . . . . . . . . Scanalyzer 26 | . . . . . . . 2 . . . . . 3 . . . . 4 . . . . . . . . . . . 4 4 . 4 5 . . . Insert Component 18 | . . . . . . . 1 . . . . . 1 . . . . 2 . . . . . . . . . . . 3 4 . 2 5 . . . Analyze 8 | . . . . . . . 1 . . . . . 2 . . . . 2 . . . . . . . . . . . 1 . . 2 . . . . Garrison Access Hacks 12 | . . . . . . . 1 . . . . . . . . . . 1 . . . . . . 1 . . . . 3 1 2 1 1 1 . . Seal Access 12 | . . . . . . . 1 . . . . . . . . . . 1 . . . . . . 1 . . . . 3 1 2 1 1 1 . . Unauthorized Hacks 135 | . 4 . . . . . . 2 . . . . 5 . . . . 16 . . . . 17 . 20 . . . . 26 12 2 16 14 . 1 . Terminals 112 | . 2 . . . . . . 2 . . . . 4 . . . . 10 . . . . 14 . 14 . . . . 24 12 2 13 14 . 1 . Track 48 | . 1 . . . . . . 1 . . . . 1 . . . . 3 . . . . 6 . 6 . . . . 12 7 1 4 6 . . . Assimilate 17 | . . . . . . . . . . . . . 1 . . . . 1 . . . . 1 . 3 . . . . 3 3 . 3 2 . . . Botnet 34 | . 1 . . . . . . 1 . . . . 2 . . . . 5 . . . . 4 . 4 . . . . 6 1 1 4 5 . . . Detonate 1 | . . . . . . . . . . . . . . . . . . . . . . . 1 . . . . . . . . . . . . . . Disrupt 6 | . . . . . . . . . . . . . . . . . . . . . . . 1 . . . . . . 2 . . 1 1 . 1 . Operators 6 | . . . . . . . . . . . . . . . . . . 1 . . . . 1 . 1 . . . . 1 1 . 1 . . . . Fabricators 13 | . . . . . . . . . . . . . 1 . . . . 2 . . . . 3 . 3 . . . . 2 . . 2 . . . . Prioritize 6 | . . . . . . . . . . . . . 1 . . . . 1 . . . . 1 . 1 . . . . 1 . . 1 . . . . Siphon 6 | . . . . . . . . . . . . . . . . . . 1 . . . . 2 . 1 . . . . 1 . . 1 . . . . Haulers 1 | . . . . . . . . . . . . . . . . . . . . . . . . . 1 . . . . . . . . . . . . Repair Stations . | . . . . . . . . . . . . . . . . . . . . . . . . . . . . . . . . . . . . . . Recycling Units 5 | . 2 . . . . . . . . . . . . . . . . . . . . . . . 3 . . . . . . . . . . . . Reject 1 | . . . . . . . . . . . . . . . . . . . . . . . . . 1 . . . . . . . . . . . . Recyclers 1 | . . . . . . . . . . . . . . . . . . . . . . . . . 1 . . . . . . . . . . . . Mask 1 | . . . . . . . . . . . . . . . . . . . . . . . . . 1 . . . . . . . . . . . . Tunnel 2 | . 2 . . . . . . . . . . . . . . . . . . . . . . . . . . . . . . . . . . . . Scanalyzers 1 | . . . . . . . . . . . . . . . . . . . . . . . . . . . . . . . . . 1 . . . . Researchers 1 | . . . . . . . . . . . . . . . . . . . . . . . . . . . . . . . . . 1 . . . . Garrison Access 4 | . . . . . . . . . . . . . . . . . . 4 . . . . . . . . . . . . . . . . . . . Redirect 1 | . . . . . . . . . . . . . . . . . . 1 . . . . . . . . . . . . . . . . . . . Reprogram 1 | . . . . . . . . . . . . . . . . . . 1 . . . . . . . . . . . . . . . . . . . Intercept 1 | . . . . . . . . . . . . . . . . . . 1 . . . . . . . . . . . . . . . . . . . Watchers 1 | . . . . . . . . . . . . . . . . . . 1 . . . . . . . . . . . . . . . . . . . Data Cores Recovered . | . . . . . . . . . . . . . . . . . . . . . . . . . . . . . . . . . . . . . . Used . | . . . . . . . . . . . . . . . . . . . . . . . . . . . . . . . . . . . . . . Hacking Detections 100 | . 6 . . . . . 3 4 . . . 1 12 . . . . 10 . . . . 12 . 9 . . . . 10 6 1 6 8 7 5 . Full Trace Events 7 | . . . . . . . . 1 . . . 1 1 . . . . . . . . . . . . . . . . . . . . 1 1 2 . Feedback Events 1 | . . . . . . . . . . . . . . . . . . . . . . . . . . . . . . . . . . . . 1 . Corruption 1 | . . . . . . . . . . . . . . . . . . . . . . . . . . . . . . . . . . . . 1 . Feedback Blocked . | . . . . . . . . . . . . . . . . . . . . . . . . . . . . . . . . . . . . . . Robot Schematics Acquired 7 | . . . . . . . . . . . . . . . . 6 . . . . . . . . . . . . . . . . 1 . . . . Robots Built . | . . . . . . . . . . . . . . . . . . . . . . . . . . . . . . . . . . . . . . Matter . | . . . . . . . . . . . . . . . . . . . . . . . . . . . . . . . . . . . . . . Time . | . . . . . . . . . . . . . . . . . . . . . . . . . . . . . . . . . . . . . . Total Robot Build Rating . | . . . . . . . . . . . . . . . . . . . . . . . . . . . . . . . . . . . . . . Part Schematics Acquired 45 | . 1 . . . . . 1 . . . . . 5 . . 7 . 7 . . 4 . 7 . 2 . . . . 7 1 . 3 . . . . Parts Built 25 | . . . . . . . . . . . . . 2 . . . . 5 . . . . 3 . 4 . . . . 7 . . 4 . . . . Matter 5158 | . . . . . . . . . . . . . 212 . . . . 617 . . . . 1039 . 638 . . . . 1500 . . 1152 . . . . Time 1284 | . . . . . . . . . . . . . 106 . . . . 123 . . . . 305 . 277 . . . . 316 . . 157 . . . . Total Part Build Rating 183 | . . . . . . . . . . . . . 12 . . . . 33 . . . . 21 . 29 . . . . 56 . . 32 . . . . Parts Repaired 12 | . 1 . . . . . 1 . . . . . 1 . . . . 2 . . . . 4 . 1 . . . . . 2 . . . . . . Time 396 | . 13 . . . . . 51 . . . . . 19 . . . . 130 . . . . 113 . 28 . . . . . 42 . . . . . . Parts Recycled . | . . . . . . . . . . . . . . . . . . . . . . . . . . . . . . . . . . . . . . Recycled Matter . | . . . . . . . . . . . . . . . . . . . . . . . . . . . . . . . . . . . . . . Retrieved Matter . | . . . . . . . . . . . . . . . . . . . . . . . . . . . . . . . . . . . . . . Retrieved Components . | . . . . . . . . . . . . . . . . . . . . . . . . . . . . . . . . . . . . . . Parts Scanalyzed 6 | . . . . . . . 1 . . . . . 1 . . . . 2 . . . . . . . . . . . 1 . . 1 . . . . Part Schematics Acquired 5 | . . . . . . . 1 . . . . . . . . . . 2 . . . . . . . . . . . 1 . . 1 . . . . Parts Damaged . | . . . . . . . . . . . . . . . . . . . . . . . . . . . . . . . . . . . . . . Bothacking | -11 -10 -10 -9 -9 -9 -8 -8 -7 -7 -7 -7 -6 -6 -6 -6 -6 -5 -5 -5 -5 -5 -4 -4 -4 -4 -4 -4 -4 -3 -3 -3 -2 -2 -2 -1 -1 -1 ------------ Run | Scr Mat Min Mat Min Exi Min Mat Fac Low Low Zio Pro Fac Low Low Dat Pro Fac Upp Upp Zhi Pro Fac Was Fac Upp Upp War Pro Res Qua Res Tes Sec Acc Com Ac0 Used RIF Installer . | . . . . . . . . . . . . . . . . . . . . . . . . . . . . . . . . . . . . . . Robots Hacked . | . . . . . . . . . . . . . . . . . . . . . . . . . . . . . . . . . . . . . . Non-combat . | . . . . . . . . . . . . . . . . . . . . . . . . . . . . . . . . . . . . . . Combat . | . . . . . . . . . . . . . . . . . . . . . . . . . . . . . . . . . . . . . . Robot Hacks Applied . | . . . . . . . . . . . . . . . . . . . . . . . . . . . . . . . . . . . . . . Relay Couplers Released . | . . . . . . . . . . . . . . . . . . . . . . . . . . . . . . . . . . . . . . Robots Rewired 5 | . . . . . . . . . . . . . 2 . . . . . . . . . . . . . . 3 . . . . . . . . . Allies Hacked 1 | . . . . . . . . . . . . . . . . . . . . . . . . . . . . . . . . . 1 . . . . Hacks Repelled . | . . . . . . . . . . . . . . . . . . . . . . . . . . . . . . . . . . . . . . Allies | -11 -10 -10 -9 -9 -9 -8 -8 -7 -7 -7 -7 -6 -6 -6 -6 -6 -5 -5 -5 -5 -5 -4 -4 -4 -4 -4 -4 -4 -3 -3 -3 -2 -2 -2 -1 -1 -1 -------- Run | Scr Mat Min Mat Min Exi Min Mat Fac Low Low Zio Pro Fac Low Low Dat Pro Fac Upp Upp Zhi Pro Fac Was Fac Upp Upp War Pro Res Qua Res Tes Sec Acc Com Ac0 Total Allies 28 | . . . . 2 . . . . . . 6 . 3 . . . . 4 . . . . 1 . 2 . . 3 . 2 1 . 2 2 . . . Largest Group 6 | . . . . 2 2 . . . . . 6 6 3 . . . . 4 . . . . 1 . 2 2 1 4 . 1 1 . 1 2 . . . Highest-Rated Group 188 | . . . . 48 48 . . . . . 142 142 67 . . . . 103 . . . . 26 . 52 52 26 188 . 26 26 . 44 36 . . . Highest-Rated Ally 60 | . . . . 31 31 . . . . . 37 37 29 . . . . 31 . . . . 26 . 26 26 26 60 . 26 26 . 44 26 . . . Total Orders 19 | . . . . . . . . . . . . . 1 1 . . . 1 . . . . . . 4 . . 4 . 4 . . . 4 . . . STAY 7 | . . . . . . . . . . . . . . . . . . 1 . . . . . . 2 . . . . 2 . . . 2 . . . GOTO 4 | . . . . . . . . . . . . . . . . . . . . . . . . . . . . 3 . . . . . 1 . . . FOLLOW 6 | . . . . . . . . . . . . . . . . . . . . . . . . . 2 . . 1 . 2 . . . 1 . . . EXPLORE 2 | . . . . . . . . . . . . . 1 1 . . . . . . . . . . . . . . . . . . . . . . . Ally Attacks 82 | . . . . . . . . . . . . 34 22 . . . . 12 . . . . . . . . . 14 . . . . . . . . . Total Damage 2113 | . . . . . . . . . . . . 1083 230 . . . . 236 . . . . . . . . . 564 . . . . . . . . . Kills 13 | . . . . . . . . . . . . 6 5 . . . . 1 . . . . . . . . . 1 . . . . . . . . . Allies Corrupted . | . . . . . . . . . . . . . . . . . . . . . . . . . . . . . . . . . . . . . . Allies Melted . | . . . . . . . . . . . . . . . . . . . . . . . . . . . . . . . . . . . . . . Turrets Deployed 1 | . . . . . . . . . . . . 1 . . . . . . . . . . . . . . . . . . . . . . . . . Intel | -11 -10 -10 -9 -9 -9 -8 -8 -7 -7 -7 -7 -6 -6 -6 -6 -6 -5 -5 -5 -5 -5 -4 -4 -4 -4 -4 -4 -4 -3 -3 -3 -2 -2 -2 -1 -1 -1 ------- Run | Scr Mat Min Mat Min Exi Min Mat Fac Low Low Zio Pro Fac Low Low Dat Pro Fac Upp Upp Zhi Pro Fac Was Fac Upp Upp War Pro Res Qua Res Tes Sec Acc Com Ac0 Robot Analysis Total 15 | . . . . . . . . . . . . . 1 . . . . 1 . . 4 . 1 . . . . . . 5 1 . 1 1 . . . Derelict Logs Recovered 18 | . . 1 . 1 . . . . 2 2 1 1 . 2 1 . . . 1 2 . . . . . 1 3 . . . . . . . . . . Drone Launches 4 | . . . . . . . . . . . . . 4 . . . . . . . . . . . . . . . . . . . . . . . . Drone Recoveries . | . . . . . . . . . . . . . . . . . . . . . . . . . . . . . . . . . . . . . . Exploration | -11 -10 -10 -9 -9 -9 -8 -8 -7 -7 -7 -7 -6 -6 -6 -6 -6 -5 -5 -5 -5 -5 -4 -4 -4 -4 -4 -4 -4 -3 -3 -3 -2 -2 -2 -1 -1 -1 ------------- Run | Scr Mat Min Mat Min Exi Min Mat Fac Low Low Zio Pro Fac Low Low Dat Pro Fac Upp Upp Zhi Pro Fac Was Fac Upp Upp War Pro Res Qua Res Tes Sec Acc Com Ac0 Turns Passed 20577 | 25 900 468 501 193 3535 137 1689 350 226 157 931 301 535 444 144 71 125 552 150 330 128 121 562 18 705 93 123 615 68 1373 631 390 822 2038 467 293 366 Spaces Moved 24405 | 10 528 405 210 120 1722 66 740 555 334 302 902 430 827 224 177 103 169 768 204 330 195 307 1080 69 1313 243 323 1168 248 1829 1275 1043 912 2811 818 686 959 Core 72 | . . . . . . . . 2 . . . . . . . . . . . . . . . . . . . . . . . . . 55 15 . . Treads 1954 | . . . 44 120 1352 . 438 . . . . . . . . . . . . . . . . . . . . . . . . . . . . . . Legs 836 | 10 88 . . . 370 66 302 . . . . . . . . . . . . . . . . . . . . . . . . . . . . . . Wheels 1011 | . 440 405 166 . . . . . . . . . . . . . . . . . . . . . . . . . . . . . . . . . . Hover . | . . . . . . . . . . . . . . . . . . . . . . . . . . . . . . . . . . . . . . Flight 20532 | . . . . . . . . 553 334 302 902 430 827 224 177 103 169 768 204 330 195 307 1080 69 1313 243 323 1168 248 1829 1275 1043 912 2756 803 686 959 Fastest Speed 15 | 120 90 100 100 160 110 156 150 26 26 26 26 26 23 23 24 24 25 25 29 29 28 21 18 25 25 25 25 18 25 15 27 27 27 34 34 34 19 Average Speed 51 | 120 103 100 112 160 159 156 169 33 36 26 79 26 31 60 78 44 55 29 29 29 44 27 24 25 25 25 25 24 25 26 27 27 31 38 48 34 31 Slowest Speed 650 | 120 120 120 180 160 180 156 240 650 96 26 96 96 96 96 96 96 96 103 29 29 109 28 25 25 103 25 25 25 25 117 27 102 102 250 250 34 34 Overloaded Moves 64 | . . . . . . . . . . . . . . . . . . . . . . 9 14 . . . . 2 . 39 . . . . . . . Propulsion Burnouts . | . . . . . . . . . . . . . . . . . . . . . . . . . . . . . . . . . . . . . . Robots Hopped 117 | . . . . . . . . 12 . . . 1 2 . . . . 7 . . . . 9 . 3 2 2 5 . 6 . 2 6 17 16 19 8 Cave-ins Triggered . | . . . . . . . . . . . . . . . . . . . . . . . . . . . . . . . . . . . . . . Teleports 6 | . . . . . . . . . . . . . . . . . . . . . . . . . . . . . . . 1 . . 4 . 1 . Exploration Rate (%) 51 | 3 76 67 17 44 89 23 45 19 58 78 84 64 25 67 41 76 39 21 45 60 62 55 24 80 24 48 55 88 47 42 86 25 65 83 33 37 67 Regions Visited 37 Branch Regions 25 Pre-discovered Areas 18 | . 2 1 . 1 1 . . . 1 . 3 1 . . . 1 . . 1 1 3 . . . . 1 1 . . . . . . . . . . Known Exits Taken 25 | . . . . . . . . 1 1 1 1 1 1 1 1 1 1 1 1 1 1 1 . . 1 1 1 1 1 1 1 1 1 1 . . . Unknown Exits Taken 10 | 1 1 1 1 1 1 1 1 . . . . . . . . . . . . . . . . . . . . . . . . . . . 1 1 . Scrap Searched 27 | . . 1 . . . . . . 2 1 3 2 . 10 . . . . 2 2 . 2 . . . . . . 2 . . . . . . . . Spaces Dug 425 | . . . . . . . 1 2 11 . . 5 16 21 2 1 11 18 5 40 . 9 28 . 20 7 2 8 1 45 28 14 22 73 4 29 2 Terrain Destroyed 740 | . . . . . 31 . 34 2 11 . . 5 48 21 2 1 11 18 5 40 . 78 93 . 20 7 2 8 1 45 28 25 22 91 6 29 56 Melee 399 | . . . . . . . 1 2 11 . . 5 16 21 2 1 11 18 5 27 . 9 28 . 20 7 2 8 1 45 28 14 22 73 4 16 2 Projectile 4 | . . . . . . . . . . . . . . . . . . . . . . . . . . . . . . . . . . . . 2 2 AOE 337 | . . . . . 31 . 33 . . . . . 32 . . . . . . 13 . 69 65 . . . . . . . . 11 . 18 2 11 52 Actions | -11 -10 -10 -9 -9 -9 -8 -8 -7 -7 -7 -7 -6 -6 -6 -6 -6 -5 -5 -5 -5 -5 -4 -4 -4 -4 -4 -4 -4 -3 -3 -3 -2 -2 -2 -1 -1 -1 --------- Run | Scr Mat Min Mat Min Exi Min Mat Fac Low Low Zio Pro Fac Low Low Dat Pro Fac Upp Upp Zhi Pro Fac Was Fac Upp Upp War Pro Res Qua Res Tes Sec Acc Com Ac0 Total 31175 | 14 720 437 378 121 2416 80 989 703 426 377 1118 617 1082 508 179 121 188 1062 288 533 229 325 1333 69 1650 263 360 1475 251 2639 1512 1116 1403 3614 865 714 1000 Wait 4883 | . 69 9 48 2 469 5 62 109 69 57 203 136 192 255 1 4 8 216 77 170 . 1 209 . 288 14 38 280 . 678 162 39 378 626 4 3 2 Move 24147 | 9 527 404 209 119 1721 65 739 530 333 301 901 427 822 223 176 102 168 753 203 329 194 306 1063 68 1306 238 318 1159 247 1816 1274 1038 899 2777 788 651 944 Hop 105 | . . . . . . . . 12 . . . 1 2 . . . . 7 . . . . 8 . 3 2 2 3 . 6 . 2 6 16 13 15 7 Pick Up 228 | . 9 2 20 . 52 . 16 4 . 4 4 6 8 2 . 2 . 13 1 . 3 . 8 1 3 . . 2 . 11 8 4 19 17 3 5 1 Fast Attach 132 | 1 8 . 6 . 24 . 14 . . . 1 . 2 1 . . . 3 . 2 11 . 3 . 4 . . 5 1 2 5 . 17 5 . 2 15 Attach 148 | . 5 4 12 . 14 . 8 14 5 2 3 10 10 . . 3 . 5 . . 2 . 4 . . . . . . 7 1 2 7 14 8 4 4 Detach 48 | . . . . . 4 . 4 5 5 2 1 10 6 . . . . 1 . . . . 1 . . . . . . 4 . . 1 . . 1 3 Swap 158 | . 8 2 1 . 7 . 19 1 . . . . 5 1 . 2 1 2 2 3 1 3 5 . 13 1 . 1 1 11 12 6 6 36 4 4 . Drop 246 | . 7 . 14 . 43 . 21 15 . 3 5 6 6 3 . 2 . 11 . 1 12 . 3 . 4 . . 8 1 11 10 1 30 10 6 3 10 Fire 363 | 4 87 16 68 . 55 10 93 . . 8 . . 3 . . . . . . 1 . 5 . . . . . . . . . 1 . 1 4 3 4 Melee 634 | . . . . . 27 . 12 13 14 . . 7 19 23 2 6 11 30 5 27 6 10 29 . 29 8 2 11 1 64 40 23 40 107 35 23 10 Ram . | . . . . . . . . . . . . . . . . . . . . . . . . . . . . . . . . . . . . . . Kick . | . . . . . . . . . . . . . . . . . . . . . . . . . . . . . . . . . . . . . . Crush 1 | . . . . . . . 1 . . . . . . . . . . . . . . . . . . . . . . . . . . . . . . Escape Stasis 55 | . . . . . . . . . . . . . . . . . . 21 . . . . . . . . . . . 29 . . . 5 . . . Rewire 22 | . . . . . . . . . . . . 11 5 . . . . . . . . . . . . . . 6 . . . . . . . . . Trap 3 | . . . . . . . . . . . . 3 . . . . . . . . . . . . . . . . . . . . . . . . . Miscellaneous 2 | . . . . . . . . . . . . . 2 . . . . . . . . . . . . . . . . . . . . . . . . Route ------- -11/Scrapyard -10/Materials (discovered 4 exits: [*Mat x2] / [*Min x2]) -10/Mines -9/Materials -9/Mines -9/Exiles (discovered 2 exits: [*Min x2]) -8/Mines -8/Materials -7/Factory (discovered 2 exits: *Low x2) -7/Lower Caves -7/Lower Caves -7/Zion (discovered 2 exits: Dee / *Pro) -6/Proximity Caves -6/Factory (discovered 2 exits: Fac / *Low) -6/Lower Caves -6/Lower Caves (discovered 2 exits: Fac / *Dat) -6/Data Miner -5/Proximity Caves -5/Factory (discovered 5 exits: Fac / *Upp x2 / *Ext x2) -5/Upper Caves -5/Upper Caves -5/Zhirov -4/Proximity Caves -4/Factory (discovered 4 exits: *Res x2 / *Upp x2) -4/Waste -4/Factory (discovered 3 exits: *Res / *Upp x2) -4/Upper Caves -4/Upper Caves (discovered 2 exits: *Res / *War) -4/Warlord -3/Proximity Caves -3/Research (discovered 4 exits: *Res / Arm / *Qua x2) -3/Quarantine -2/Research (discovered 3 exits: *Acc / *Tes x2) -2/Testing -2/Section 7 -1/Access -1/Command -1/Access_0 History --------- Turn | Location | Event 13 | -11/Scrapyard | Discovered new exit (range 3) 26 | -11/Scrapyard | Entered Materials 132 | -10/Materials | Discovered new exit (range 11) 325 | -10/Materials | Build established: Mutant 336 | -10/Materials | Repaired Lgt. Assault Rifle 517 | -10/Materials | Core integrity fell below 50% 559 | -10/Materials | Lost 3 parts (1p2w) 659 | -10/Materials | Discovered new exit (range 16) 826 | -10/Materials | Discovered new exit (range 16) 901 | -10/Materials | Discovered new exit (range 16) 926 | -10/Materials | Entered Mines 1342 | -10/Mines | Core integrity fell below 20% 1370 | -10/Mines | Lost 3 parts (1n2w) 1390 | -10/Mines | Discovered new exit (range 5) 1394 | -10/Mines | Entered Materials 1394 | -9/Materials | Evolved 2 slots: Propulsion x1, Utility x1 1655 | -9/Materials | Discovered new exit (range 14) 1835 | -9/Materials | Lost 7 parts (1p3n1u2w) 1895 | -9/Materials | Entered Mines 2079 | -9/Mines | Deemed a non-threat by the Exiles lab entrance 2079 | -9/Mines | Discovered new exit (range 5) 2088 | -9/Mines | Entered Exiles 2088 | -9/Exiles | Accompanied by 2 allies 2112 | -9/Exiles | Discovered new exit (range 15) 2118 | -9/Exiles | Led the pair of lost Derelicts to a safe place 2128 | -9/Exiles | Met 8R-AWN 2154 | -9/Exiles | Met EX-HEX 2240 | -9/Exiles | Met EX-DEC 2269 | -9/Exiles | Learned location of Zion (-7) 2475 | -9/Exiles | Met EX-BIN 2504 | -9/Exiles | Aligned with FarCom system 2505 | -9/Exiles | Given EX-Vault access code 2544 | -9/Exiles | Opened EX-Vault 2553 | -9/Exiles | Found Latent Energy Streamer 2559 | -9/Exiles | Found Longsword +1 2566 | -9/Exiles | Found Potential Leg 2569 | -9/Exiles | Found Potential Leg 2604 | -9/Exiles | Warned to stay clear of 0b10 Research branches 2618 | -9/Exiles | Build established: Hauler-Mutant 2693 | -9/Exiles | Visited The Gauntlet 3512 | -9/Exiles | Build established: Mutant 3799 | -9/Exiles | Attacked by the Exiles 3873 | -9/Exiles | Destroyed 8R-AWN 3889 | -9/Exiles | Found Prototype Protection 3889 | -9/Exiles | Identified 8R-AWN's Armor/EX 3893 | -9/Exiles | Lost 5 parts (1p2n1u1w) 4033 | -9/Exiles | System corruption reached 10% 4112 | -9/Exiles | Found Prototype Processor 4373 | -9/Exiles | Build established: Hauler-Mutant 4577 | -9/Exiles | Core integrity fell below 50% 4583 | -9/Exiles | Destroyed EX-DEC 4618 | -9/Exiles | Destroyed EX-BIN 4691 | -9/Exiles | Destroyed EX-HEX 4735 | -9/Exiles | Found Prototype Device 4735 | -9/Exiles | Identified System Purifier 5028 | -9/Exiles | Found Deploy-a-Sentry 5033 | -9/Exiles | Build established: Scavenger-Mutant 5609 | -9/Exiles | Discovered new exit (range 10) 5623 | -9/Exiles | Stole four prototypes: Potential Leg, Latent Energy Streamer, Longsword +1, Deploy-a-Sentry 5623 | -9/Exiles | Entered Mines 5724 | -8/Mines | Build established: Hauler-Mutant 5724 | -8/Mines | Discovered new exit (range 9) 5760 | -8/Mines | Entered Materials 5760 | -8/Materials | Evolved 2 slots: Utility x2 6479 | -8/Materials | Garrison activated, responded to threat 6541 | -8/Materials | Destroyed 8 combat bots 6548 | -8/Materials | Identified Exp. Targeting Computer 6650 | -8/Materials | Destroyed 9 combat bots 6763 | -8/Materials | Discovered new exit (range 5) 6948 | -8/Materials | Repaired Imp. Assault Rifle 7449 | -8/Materials | Entered Factory 7449 | -7/Factory | Evolved 2 slots: Propulsion x1, Utility x1 7628 | -7/Factory | Identified exit to Lower Caves 7799 | -7/Factory | Entered Lower Caves 7908 | -7/Lower Caves | Learned Factory security intel 7971 | -7/Lower Caves | Encountered a Warlord checkpoint 8012 | -7/Lower Caves | Discovered new exit (range 10) 8014 | -7/Lower Caves | Identified exit to Lower Caves 8025 | -7/Lower Caves | Entered another Lower Caves area 8056 | -7/Lower Caves | Learned 8 Factory zone layouts 8059 | -7/Lower Caves | Spotted PM-ZBX(f) 8060 | -7/Lower Caves | Encountered a Master Thief 8072 | -7/Lower Caves | Adv. Weapon Cycler stolen by Master Thief 8093 | -7/Lower Caves | Learned 12 Factory zone layouts 8108 | -7/Lower Caves | Encountered a Warlord checkpoint 8180 | -7/Lower Caves | Discovered new exit (range 10) 8182 | -7/Lower Caves | Identified exit to Zion 8182 | -7/Lower Caves | Entered Zion 8210 | -7/Zion | Found Prototype Device 8234 | -7/Zion | Given A8's code to call for help 8459 | -7/Zion | Build established: Mutant 8522 | -7/Zion | Acquired unknown access codes intercepted by a Zionite 8542 | -7/Zion | Learned Factory emergency access door positions 8645 | -7/Zion | Found Prototype Device 8645 | -7/Zion | Identified Phasing AFG 8647 | -7/Zion | Identified Mobile Refinery Mk. CCLXVII 8744 | -7/Zion | Identified exit to Deep Caves 8864 | -7/Zion | Gained Derelict followers 9068 | -7/Zion | Discovered new exit (range 14) 9072 | -7/Zion | Identified exit to Proximity Caves 9113 | -7/Zion | Entered Proximity Caves 9113 | -6/Proximity Caves | Accompanied by 6 allies 9247 | -6/Proximity Caves | Spotted B-75 Beast 9257 | -6/Proximity Caves | DAS Turret deployed 9274 | -6/Proximity Caves | Allies destroyed B-75 Beast 9411 | -6/Proximity Caves | Discovered new exit (range 15) 9414 | -6/Proximity Caves | Identified exit to Factory 9414 | -6/Proximity Caves | Entered Factory 9414 | -6/Factory | Evolved 2 slots: Propulsion x1, Utility x1 9415 | -6/Factory | Identified exit to Lower Caves 9415 | -6/Factory | Identified exit to Factory 9519 | -6/Factory | Repaired Adv. Sensor Array 9948 | -6/Factory | Fabricated Field Propulsion Drive? 9949 | -6/Factory | Entered Lower Caves 9949 | -6/Lower Caves | Accompanied by 2 allies 9961 | -6/Lower Caves | Learned 4 Factory zone layouts 10050 | -6/Lower Caves | Identified exit to Lower Caves 10393 | -6/Lower Caves | Entered another Lower Caves area 10503 | -6/Lower Caves | Encountered a Warlord checkpoint 10535 | -6/Lower Caves | Discovered new exit (range 3) 10536 | -6/Lower Caves | Identified exit to Data Miner 10537 | -6/Lower Caves | Attracted the attention of an 0b10 checkpoint 10537 | -6/Lower Caves | Entered Data Miner 10537 | -6/Data Miner | Discovered new exit (range 6) 10542 | -6/Data Miner | Met Data Miner 10547 | -6/Data Miner | Learned location of Section 7 (-2) 10547 | -6/Data Miner | Acquired the access code to Warlord's prototype stash 10563 | -6/Data Miner | Received God Mode back door access code from Data Miner 10582 | -6/Data Miner | Destroyed Data Miner 10588 | -6/Data Miner | Found Prototype Hackware 10590 | -6/Data Miner | Found Prototype Hackware 10593 | -6/Data Miner | Data Conduit disabled 10608 | -6/Data Miner | Identified exit to Proximity Caves 10608 | -6/Data Miner | Entered Proximity Caves 10728 | -5/Proximity Caves | Spotted PX-CR8(f) 10730 | -5/Proximity Caves | Discovered exit to Factory (range 6) 10733 | -5/Proximity Caves | Entered Factory 10733 | -5/Factory | Evolved 2 slots: Utility x2 10734 | -5/Factory | Identified exit to Factory 10738 | -5/Factory | Identified Deep Network Scanner 10739 | -5/Factory | Identified Ghost Barrier 10842 | -5/Factory | Allied Derelicts emerged from ambush trap array 10869 | -5/Factory | Identified exit to Upper Caves 10869 | -5/Factory | Identified exit to Extension 11058 | -5/Factory | Repaired Gravity Neutralizing Apparatus? 11068 | -5/Factory | Fabricated Mic. Fission Core (x2) 11105 | -5/Factory | Fabricated Q-thruster (x2) 11124 | -5/Factory | Local fabrication network quarantined 11147 | -5/Factory | Fabricated Exp. Propulsion Shielding (x1) 11211 | -5/Factory | Repaired Energy Well? 11285 | -5/Factory | Entered Upper Caves 11414 | -5/Upper Caves | Encountered a Warlord checkpoint 11429 | -5/Upper Caves | Discovered new exit (range 5) 11433 | -5/Upper Caves | Identified exit to Upper Caves 11434 | -5/Upper Caves | Learned location of Armory (-3) 11435 | -5/Upper Caves | Entered another Upper Caves area 11689 | -5/Upper Caves | Spotted B-75 Beast 11727 | -5/Upper Caves | Build established: Wizard-Sprinter 11733 | -5/Upper Caves | Attracted the attention of an 0b10 checkpoint 11734 | -5/Upper Caves | Learned Factory terminal intel 11753 | -5/Upper Caves | Discovered new exit (range 15) 11758 | -5/Upper Caves | Found Alien Artifact 11758 | -5/Upper Caves | Identified Core Expander 11758 | -5/Upper Caves | Installed Core Expander, added new Power slot 11765 | -5/Upper Caves | Identified exit to Zhirov 11765 | -5/Upper Caves | Entered Zhirov 11765 | -5/Zhirov | Discovered new exit (range 3) 11771 | -5/Zhirov | Met Zhirov 11780 | -5/Zhirov | Learned location of Quarantine (-3) 11780 | -5/Zhirov | Learned location of Testing (-2) 11780 | -5/Zhirov | Learned location of Command (-1) 11782 | -5/Zhirov | Zhirov requested help retrieving the SGEMP Prototype 11787 | -5/Zhirov | Found Alien Artifact 11787 | -5/Zhirov | Identified Integrated Reactor 11787 | -5/Zhirov | Installed Integrated Reactor, increased core energy generation (+2%) 11879 | -5/Zhirov | Found Alien Artifact 11891 | -5/Zhirov | Identified exit to Proximity Caves 11893 | -5/Zhirov | Entered Proximity Caves 12011 | -4/Proximity Caves | Discovered exit to Factory (range 11) 12014 | -4/Proximity Caves | Entered Factory 12014 | -4/Factory | Evolved 2 slots: Propulsion x1, Utility x1 12015 | -4/Factory | Loaded intel: 20 terminal locations 12040 | -4/Factory | Identified exit to Upper Caves 12117 | -4/Factory | Fabricated Adv. Reaction Control System? 12178 | -4/Factory | Discovered new exit (range 12) 12182 | -4/Factory | Identified exit to Research 12197 | -4/Factory | Fabricated Exp. Melee Analysis Suite? 12293 | -4/Factory | Discovered exit to Research (range 6) 12315 | -4/Factory | Local fabrication network quarantined 12345 | -4/Factory | Fabricated Exp. Signal Interpreter? 12447 | -4/Factory | Repaired Nuclear Pulse Array 12492 | -4/Factory | Repaired Cld. Nuclear Pulse Thruster 12507 | -4/Factory | Repaired Med. Storage Unit 12514 | -4/Factory | First assault squad dispatched 12538 | -4/Factory | Repaired Mic. Fission Core? 12576 | -4/Factory | Manually triggered Chute Trap 12576 | -4/Factory | Sucked down chute 12576 | -4/Factory | Entered Waste 12579 | -4/Waste | Spotted C-40 Crusher 12579 | -4/Waste | Spotted C-40 Crusher 12581 | -4/Waste | Spotted C-40 Crusher 12588 | -4/Waste | Spotted C-40 Crusher 12589 | -4/Waste | Spotted C-40 Crusher 12591 | -4/Waste | EMP discharged 12591 | -4/Waste | Discovered new exit (range 16) 12594 | -4/Waste | Identified exit to Factory 12594 | -4/Waste | Entered Factory 12749 | -4/Factory | Fabricated Nanoactuators? 12772 | -4/Factory | Repaired Mic. Fission Core 12847 | -4/Factory | Discovered exit to Research (range 5) 12879 | -4/Factory | Fabricated Adv. Actuator Array (x1) 12982 | -4/Factory | Fabricated Nanosword (x1) 13000 | -4/Factory | Local fabrication network quarantined 13299 | -4/Factory | Entered Upper Caves 13299 | -4/Upper Caves | Accompanied by 2 allies 13305 | -4/Upper Caves | Encountered a Warlord checkpoint 13359 | -4/Upper Caves | Attracted the attention of an 0b10 checkpoint 13382 | -4/Upper Caves | Discovered new exit (range 11) 13385 | -4/Upper Caves | Identified exit to Upper Caves 13392 | -4/Upper Caves | Entered another Upper Caves area 13392 | -4/Upper Caves | Accompanied by 1 ally 13398 | -4/Upper Caves | Learned Research emergency access door positions 13399 | -4/Upper Caves | Discovered exit to Research (range 11) 13420 | -4/Upper Caves | Encountered a Warlord checkpoint 13481 | -4/Upper Caves | Learned location of 1 exit from Factory 13481 | -4/Upper Caves | Learned Factory emergency access door positions 13481 | -4/Upper Caves | Learned Research emergency access door positions 13499 | -4/Upper Caves | Discovered new exit (range 10) 13504 | -4/Upper Caves | Identified exit to Warlord 13515 | -4/Upper Caves | Entered Warlord 13515 | -4/Warlord | Accompanied by 1 ally 13524 | -4/Warlord | System corruption cleaned by Quarantine Array 13668 | -4/Warlord | Found Ghost Barrier 13671 | -4/Warlord | Found Prototype Reactor 13671 | -4/Warlord | Identified Vortex Chain Reactor 13684 | -4/Warlord | Met Warlord 13706 | -4/Warlord | Opened side exit 13709 | -4/Warlord | Warlord's base attacked by MAIN.C 14034 | -4/Warlord | Warlord forces counterattacked 14089 | -4/Warlord | Spotted Striker 14111 | -4/Warlord | Spotted Executioner 14126 | -4/Warlord | Spotted Executioner 14129 | -4/Warlord | Discovered new exit (range 7) 14129 | -4/Warlord | Spotted Executioner 14130 | -4/Warlord | Identified exit to Proximity Caves 14130 | -4/Warlord | Entered Proximity Caves 14181 | -3/Proximity Caves | Spotted OE-GPO(f) 14182 | -3/Proximity Caves | Encountered a Master Thief 14197 | -3/Proximity Caves | Discovered exit to Research (range 6) 14198 | -3/Proximity Caves | Entered Research 14198 | -3/Research | Evolved 2 slots: Utility x2 14211 | -3/Research | Identified exit to Armory 14211 | -3/Research | Identified exit to Quarantine 14303 | -3/Research | Identified Transdimensional Reconstructor 14434 | -3/Research | Spotted B-90 Cyclops 14474 | -3/Research | Found Gamma Bomb Array 14619 | -3/Research | Fabricated Femtoactuators? 14747 | -3/Research | Fabricated Exp. Actuator Array? 14823 | -3/Research | Fabricated Impulse Thruster Array? 14887 | -3/Research | Fabricated Exp. Hacking Suite (x1) 15252 | -3/Research | Fabricated Exp. Terrain Scanner (x1) 15286 | -3/Research | Fabricated Adv. Force Booster (x2) 15301 | -3/Research | Local fabrication network quarantined 15516 | -3/Research | Central database locked down 15543 | -3/Research | Discovered new exit (range 12) 15571 | -3/Research | Entered Quarantine 15574 | -3/Quarantine | Cryocooling Duct disabled 15589 | -3/Quarantine | Ambient heat levels rising (+20) 15589 | -3/Quarantine | Non-combat units ordered to evacuate 15626 | -3/Quarantine | Identified exit to Research 15653 | -3/Quarantine | Found Alien Artifact 15653 | -3/Quarantine | Identified Dimensional Node Initializer 15653 | -3/Quarantine | Initialized slip node 15656 | -3/Quarantine | Found Alien Artifact 15656 | -3/Quarantine | Identified Hpw. Transdimensional Reconstructor 15656 | -3/Quarantine | Warped through subspace to slip node 15660 | -3/Quarantine | Found Hpw. Transdimensional Reconstructor 15726 | -3/Quarantine | Repaired Nuclear Pulse Array 15785 | -3/Quarantine | Repaired Adv. Phase Shifter 15983 | -3/Quarantine | Found Alien Artifact 16048 | -3/Quarantine | Identified Core Reset Matrix 16075 | -3/Quarantine | Found Transdimensional Reconstructor 16112 | -3/Quarantine | Found Alien Launcher 16124 | -3/Quarantine | Identified Sigix Terminator 16166 | -3/Quarantine | Found Alien Artifact 16180 | -3/Quarantine | Identified Subatomic Replicator 16202 | -3/Quarantine | Entered Research 16202 | -2/Research | Warlord forces began assault on 0b10 16202 | -2/Research | Evolved 2 slots: Utility x2 16203 | -2/Research | Identified exit to Testing 16227 | -2/Research | Discovered exit to Testing (range 6) 16312 | -2/Research | Research machine network offline 16316 | -2/Research | Discovered new exit (range 12) 16397 | -2/Research | Met up with Warlord 16460 | -2/Research | Borebot progress halted 16498 | -2/Research | Build established: Wizard-Scout 16507 | -2/Research | Found Exp. Melee Analysis Suite 16577 | -2/Research | Borebot progress halted 16579 | -2/Research | Borebot progress halted 16592 | -2/Research | Entered Testing 16610 | -2/Testing | Found Prototype Protection 16611 | -2/Testing | Found Prototype Protection 16616 | -2/Testing | Protovariant out of control (PH-7X253TXYR4) 16616 | -2/Testing | Unleashed a protovariant (PH-7X253TXYR4) 16629 | -2/Testing | Found Prototype Device 16629 | -2/Testing | Identified AEGIS Remote Shield 16657 | -2/Testing | Found Prototype Energy Cannon 16657 | -2/Testing | Identified Disintegrator 16675 | -2/Testing | Central database locked down 16683 | -2/Testing | Found Prototype Energy Cannon 16683 | -2/Testing | Identified Cld. Nova Cannon 16729 | -2/Testing | Fabricated Quantum Shading Machine (x1) 16764 | -2/Testing | Fabricated Nanosword (x1) 16803 | -2/Testing | Fabricated Nanosword (x1) 16826 | -2/Testing | Fabricated Impulse Thruster Array? 17145 | -2/Testing | Found Prototype Energy Gun 17145 | -2/Testing | Identified Hyp. EM Gauss Rifle 17199 | -2/Testing | Found Prototype Energy Cannon 17199 | -2/Testing | Identified Imp. Potential Cannon 17244 | -2/Testing | Identified SHELL Armor 17383 | -2/Testing | Spotted Fortress 17407 | -2/Testing | Discovered new exit (range 5) 17409 | -2/Testing | Identified exit to Section 7 17414 | -2/Testing | Entered Section 7 17558 | -2/Section 7 | Found Alien Artifact 17602 | -2/Section 7 | Identified Core Regenerator 17651 | -2/Section 7 | Found Alien Artifact 17659 | -2/Section 7 | Identified Integrity Redistributor 17679 | -2/Section 7 | Spotted S7 Guard 17860 | -2/Section 7 | Found Alien Artifact 17911 | -2/Section 7 | Spotted B-99 Colossus 17939 | -2/Section 7 | Found Alien Artifact 17939 | -2/Section 7 | Identified LRC Energy Well 17939 | -2/Section 7 | Installed LRC Energy Well, increased energy storage capacity (+250) 18099 | -2/Section 7 | Spotted Executioner 18099 | -2/Section 7 | Spotted Executioner 18114 | -2/Section 7 | Build established: Wizard-Mutant 18135 | -2/Section 7 | Identified Integrated Dissipator 18148 | -2/Section 7 | Installed Integrated Dissipator, increased core heat dissipation (+2%) 18152 | -2/Section 7 | Found Alien Artifact 18364 | -2/Section 7 | Identified Integrated Heat Negator 18393 | -2/Section 7 | Installed Integrated Heat Negator, increased core heat dissipation (+2%) 18565 | -2/Section 7 | Found Alien Artifact 18582 | -2/Section 7 | Identified Core Membrane 18600 | -2/Section 7 | Installed Core Membrane, gained immunity to corruption 19028 | -2/Section 7 | Found Integrity Redistributor 19102 | -2/Section 7 | Scanned by Researcher 19103 | -2/Section 7 | Intercept squad dispatched 19109 | -2/Section 7 | Warped through subspace 19167 | -2/Section 7 | Found Integrity Redistributor 19167 | -2/Section 7 | Used Integrity Redistributor, redistributed integrity from core (-47) 19203 | -2/Section 7 | Used Integrity Redistributor, redistributed integrity from core (-0) 19204 | -2/Section 7 | Used Subatomic Replicator to replicate Integrated Reactor 19205 | -2/Section 7 | Installed Integrated Reactor, increased core energy generation (+2%) 19207 | -2/Section 7 | Found Integrated Reactor 19207 | -2/Section 7 | Installed Integrated Reactor, increased core energy generation (+2%) 19221 | -2/Section 7 | Found Integrity Redistributor 19262 | -2/Section 7 | Found Hpw. Transdimensional Reconstructor 19265 | -2/Section 7 | Found Transdimensional Reconstructor 19266 | -2/Section 7 | Found Transdimensional Reconstructor 19270 | -2/Section 7 | Found Transdimensional Reconstructor 19289 | -2/Section 7 | Spotted Alpha 7 19289 | -2/Section 7 | Spotted Alpha 7 19295 | -2/Section 7 | Spotted Combat Programmer 19310 | -2/Section 7 | Identified exit to Access 19321 | -2/Section 7 | Intercept squad dispatched 19322 | -2/Section 7 | Spotted Tracker 19323 | -2/Section 7 | Spotted Tracker 19325 | -2/Section 7 | Spotted Tracker 19326 | -2/Section 7 | Warped through subspace 19329 | -2/Section 7 | Spotted Tracker 19330 | -2/Section 7 | Warped through subspace 19331 | -2/Section 7 | Warped through subspace 19386 | -2/Section 7 | Spotted Combat Programmer 19427 | -2/Section 7 | Core integrity fell below 50% 19452 | -2/Section 7 | Entered Access 19452 | -1/Access | Evolved 2 slots: Weapon x2 19534 | -1/Access | Used Integrity Redistributor, redistributed integrity from core (-102) 19558 | -1/Access | Build established: Hacker-Mutant 19566 | -1/Access | Spotted B-99 Colossus 19612 | -1/Access | Intercept squad dispatched 19631 | -1/Access | Spotted Tracker 19632 | -1/Access | Spotted Tracker 19648 | -1/Access | Destroyed Tracker 19654 | -1/Access | Destroyed Tracker 19700 | -1/Access | Spotted Combat Programmer 19700 | -1/Access | Spotted Combat Programmer 19710 | -1/Access | Destroyed Combat Programmer 19714 | -1/Access | Destroyed Combat Programmer 19753 | -1/Access | Intercept squad dispatched 19760 | -1/Access | Used Integrity Redistributor, redistributed integrity from core (-110) 19762 | -1/Access | Spotted Tracker 19762 | -1/Access | Spotted Tracker 19762 | -1/Access | Spotted Tracker 19766 | -1/Access | Destroyed Tracker 19768 | -1/Access | Destroyed Tracker 19779 | -1/Access | Destroyed Tracker 19801 | -1/Access | Spotted Combat Programmer 19802 | -1/Access | Spotted Combat Programmer 19807 | -1/Access | Destroyed Combat Programmer 19819 | -1/Access | Destroyed Combat Programmer 19844 | -1/Access | Spotted Combat Programmer 19917 | -1/Access | Discovered new exit (range 8) 19919 | -1/Access | Entered Command 19936 | -1/Command | Build established: Machinist-Mutant 20078 | -1/Command | Spotted Combat Programmer 20083 | -1/Command | Spotted M Guard 20083 | -1/Command | Spotted M Guard 20084 | -1/Command | Spotted Combat Programmer 20096 | -1/Command | Met MAIN.C 20098 | -1/Command | 0b10 Conduit disabled 20165 | -1/Command | Spotted B-99 Colossus 20209 | -1/Command | Warped through subspace to slip node 20209 | -1/Command | Discovered new exit (range 4) 20212 | -1/Command | Entered Access_0 20213 | -1/Access_0 | Met Architect 20253 | -1/Access_0 | A6 warped into view 20254 | -1/Access_0 | Subspace Access Node disabled 20261 | -1/Access_0 | Subspace Access Node disabled 20295 | -1/Access_0 | Core integrity fell below 50% 20325 | -1/Access_0 | A5 warped into view 20358 | -1/Access_0 | Subspace Access Node disabled 20406 | -1/Access_0 | Found Integrated Reactor 20406 | -1/Access_0 | Installed Integrated Reactor, increased core energy generation (+2%) 20435 | -1/Access_0 | A4 warped into view 20442 | -1/Access_0 | Lost 4 parts (1n3u) 20494 | -1/Access_0 | Subspace Access Node disabled 20523 | -1/Access_0 | Singularity Gate disabled 20550 | -1/Access_0 | Core integrity fell below 20% 20578 | -1/Access_0 | Destroyed by Enhanced Grunt with Neutron Cannon Last Messages --------------- 20565_ Penetrated by Quantum Shear. 20565_ Nanosword severed. 20572_ HV Slug penetrates Wall. 20573_ Penetrated by HV Slug. 20573_ HV Slug penetrates Wall. 20573_ HV Slug penetrates Earth. 20574_ HV Slug penetrates Wall. 20575_ HV Slug penetrates Earth. 20575_ Penetrated by HV Slug. 20575_ Knocked back. 20575_ Penetrated by HV Slug. 20575_ HV Slug penetrates Earth. 20577_ HV Slug penetrates Wall. 20577_ Penetrated by HV Slug. 20577_ HV Slug penetrates Wall. 20578_ Penetrated by HV Slug. 20578_ Critical hit. 20578_ Exp. Energy Well destroyed. 20578_ Imp. Q-thruster destroyed. 20578_ Lrg. Storage Unit destroyed. Map ----- +----------------------------------------------------+ | ???????# ##???### #????????????????????? | | ???????# ##?? #????????????????????? | | ???????# ## #?? ###????????????????????? | | ??????# #### ### #??????????????????????? | | ??????# #???# #??????????????????????? | | ??????## ## ????### #??????????????????????? | | ???????##??# ??????# #??????????????????????? | | ???????????# ???????# #??????????????????????? | | ???????????# ??###### ######?????????????????? | | ???????????# ??#""""" """""#?????????????????? | | ???????????#????#"""" """"#??????????????????? | | ???????????????##" "##?????????????????? | | ???????????????#"" ""#?????????????????# | | ???????????????#"" ""#?????????????????# | | ???????????????##" g "##?????????????????# | | ????????????????#" "#??????????????????? | | ????????????????#" "#??????????????????? | | ????????????????#" "#??????????????????? | | ???????????????##" "##?????????????????? | | ???????????????#"" ""#?????????????????? | | ???????????????#"" ""#????????????###### | | ???????????????##" "##????????????# | | ????????????????#"""" "##????????????# | | ???????????????#""""" " "#??#?????????# | | ???????????????###### ]!####### #?????????## | | ???????????#????##??# ]@## #??????????## | | ???????????# ??## ??# !/# #???????????# | | ????????????? ## ??# #???????????## | | ?????????????? ??# #### #????????????## | | ???????????????# ### ##???????????????????## | | ???????????????# ## #; #????????????????????# | | ???????????????# g #g##????????????????????## | | ???????????????## g ; #??????????????????????# | | ????????????????# g # #??????????????????????## | | ???????????????## ###; ##?????????????????????? | | ??????????????## ### #?????????????????????? | | ??????????????# #h; #?????????????????????? | | ???????????? #### ####???????????????????? | | ????????????# ### #???????????????????? | | ??????? ## ###?????????????????? | | ???????# ### #### #?????????????????? | | ???????# ## ### ### #?????????????????? | | ???????# #?# # ## #?????????????????? | | ???????####### #?# # # #?????????????????? | | ?????????????# #?# # ## ##????????????????? | | ???????####??# ### ### ### #????????????????? | | ???????# ### ## ## # #????????????????? | | ???????# # #?# #????????????????? | | ???????# ### ##### # #????????????????? | | ???????# ## #???# ###????????????????? | +----------------------------------------------------+ Best States ------------- Heat Dissipation 112 Energy Generation 69 Energy Capacity 1490 Matter Stores 300 Matter Capacity 300 Sight Range 16 Robot Scan Range 20 Terrain Scan Range 30 Terrain Scan Density 210 ECM Strength 3 Jamming Range 16 Additional Mass Support 20 Armor Coverage 1000 Resistance: EX 90 Propulsion Shielding 90 Weapon Cycling 25 Melee Speed Boost 50 Phase Shifting 15 Evasion (%) 94 Targeting Accuracy 12 Melee Accuracy 12 Recoil Reduction 3 Particle Charging 30 Force Boost 5 Offensive Hacking 75 Defensive Hacking 40 Item Schematics ----------------- Med. Storage Unit | -10/Materials | Hacked Gravity Neutralizing Apparatus | -8/Materials | Scanalyzed Field Propulsion Drive | -6/Factory | Hacked Nuclear Pulse Array | -6/Factory | Hacked Lrn. Sensor Array | -6/Factory | Hacked Adv. Signal Interpreter | -6/Factory | Hacked Lrn. Terrain Scanner | -6/Factory | Hacked Combat Drone Bay | -6/Data Miner | Free Lgt. Regenerative Plating | -6/Data Miner | Free Cmb. Gravmag System | -6/Data Miner | Free Exp. Cesium-ion Thruster | -6/Data Miner | Free Triangulator | -6/Data Miner | Free Exp. Targeting Computer | -6/Data Miner | Free Tactical Coordination Suite | -6/Data Miner | Free Q-thruster | -5/Factory | Hacked Mic. Fission Core | -5/Factory | Hacked Exp. Signal Interpreter | -5/Factory | Hacked Exp. Propulsion Shielding | -5/Factory | Hacked Exp. Weapon Shielding | -5/Factory | Hacked System Purifier | -5/Factory | Scanalyzed Adv. Terrain Scan Processor | -5/Factory | Scanalyzed Assault Drone Bay | -5/Zhirov | Free Exp. Heat Sink | -5/Zhirov | Free Exp. Optical Array | -5/Zhirov | Free Imp. Arc Thrower | -5/Zhirov | Free Quantum Capacitor | -4/Factory | Hacked Exp. Melee Analysis Suite | -4/Factory | Hacked Nanosword | -4/Factory | Hacked Nanoactuators | -4/Factory | Hacked Adv. Actuator Array | -4/Factory | Hacked Exp. Hacking Suite | -4/Factory | Hacked Adv. Datajack | -4/Factory | Hacked Lgt. Quantum Reactor | -4/Factory | Hacked Imp. Force Booster | -4/Factory | Hacked Imp. Diametric Drive | -3/Research | Scanalyzed Femtoactuators | -3/Research | Hacked Exp. Actuator Array | -3/Research | Hacked Impulse Thruster Array | -3/Research | Hacked Adv. Force Booster | -3/Research | Hacked Exp. Terrain Scanner | -3/Research | Hacked Exp. Sensor Array | -3/Research | Hacked Quantum Shading Machine | -3/Quarantine | Hacked Quantum Reactor | -2/Testing | Hacked Cmb. Linear Gravjet | -2/Testing | Hacked Exp. Energy Well | -2/Testing | Scanalyzed Robot Schematics ------------------ S-27 Virus | -6/Data Miner | Free G-50 Soldier | -6/Data Miner | Free G-67 Veteran | -6/Data Miner | Free L-41 Fighter | -6/Data Miner | Free P-70 Sage | -6/Data Miner | Free I-36 Angel | -6/Data Miner | Free C-65 Expert | -2/Testing | Hacked Fabricated ------------ Field Propulsion Drive | x2 | -6/Factory Mic. Fission Core | x2 | -5/Factory Q-thruster | x2 | -5/Factory Exp. Propulsion Shielding | x1 | -5/Factory Adv. Reaction Control System | x1 | -4/Factory | Preloaded Exp. Melee Analysis Suite | x1 | -4/Factory Exp. Signal Interpreter | x1 | -4/Factory Nanoactuators | x2 | -4/Factory Adv. Actuator Array | x1 | -4/Factory Nanosword | x1 | -4/Factory Femtoactuators | x1 | -3/Research Exp. Actuator Array | x1 | -3/Research Impulse Thruster Array | x1 | -3/Research Exp. Hacking Suite | x1 | -3/Research Exp. Terrain Scanner | x1 | -3/Research Adv. Force Booster | x2 | -3/Research Quantum Shading Machine | x1 | -2/Testing Nanosword | x1 | -2/Testing Nanosword | x1 | -2/Testing Impulse Thruster Array | x1 | -2/Testing Alien Tech Used ----------------- Core Expander Integrated Reactor Dimensional Node Initializer High-powered Transdimensional Reconstructor LRC Energy Well Integrated Dissipator Integrated Heat Negator Core Membrane Integrity Redistributor Subatomic Replicator Transdimensional Reconstructor Achievements -------------- Guerrilla Style Watch This! Challenges ------------ None Game ------ Seed CloakReactiveElectrolaser Manual? 0 Play Time 08:38:33 Cumulative 225.4 hours Start 2020.09.04 @ 17:08:45 End 2020.09.06 @ 22:31:25 Sessions 15 Manual Loads 0 Difficulty Rogue Special Mode None Game No. 96 Rogue 96 Adventurer 0 Explorer 0 Win Type - Total 7 Types 6/0/0/1/0/0/0 Lore% 83 Gallery% 79 Achievement% 70 Wizard Run 0 Options --------- ASCII 1 Keyboard 0 Movement Numpad Keybinds 0 Fullscreen 1 Font 18/Cog Map View 76x50 Tactical HUD 1 Map Filters NONE Filters NONE Steam 1 RUN: ecf7e840-e16e-4508-a498-5f2c95a534f7